Publisher Label,Publisher URI,"Supplier ID","Supplier","Invoice No.","Amount £","Purpose","Transaction Number","Payment Date","Organisational Unit","Cost Centre(T)","Internal Category Number"
"Wolverhampton City Council","http://opendatacommunities.org/id/metropolitan-district-council/wolverhampton","706697","Radis Community Care","1702201920190221","257.73","TPP - Home Care","190565748","22/02/2019","Physical Disabilities Care Purchasing","PD Care Purchasing (Spot Placements)","R5420"
"Wolverhampton City Council","http://opendatacommunities.org/id/metropolitan-district-council/wolverhampton","706697","Radis Community Care","1702201920190221","250.47","TPP - Home Care","190565748","22/02/2019","Physical Disabilities Care Purchasing","PD Care Purchasing (Spot Placements)","R5420"
"Wolverhampton City Council","http://opendatacommunities.org/id/metropolitan-district-council/wolverhampton","706697","Radis Community Care","1702201920190221","82.80","TPP - Carer Support Service","190565748","22/02/2019","Carer Support","CS Care Purchasing (Spot Placements)","R5421"
"Wolverhampton City Council","http://opendatacommunities.org/id/metropolitan-district-council/wolverhampton","706697","Radis Community Care","1702201920190221","130.68","TPP - Home Care","190565748","22/02/2019","Older People Care Purchasing","OP Care Purchasing (Spot Placements)","R5420"
"Wolverhampton City Council","http://opendatacommunities.org/id/metropolitan-district-council/wolverhampton","706697","Radis Community Care","1702201920190221","101.64","TPP - Home Care","190565748","22/02/2019","Older People Care Purchasing","OP Care Purchasing (Spot Placements)","R5420"
"Wolverhampton City Council","http://opendatacommunities.org/id/metropolitan-district-council/wolverhampton","706697","Radis Community Care","1702201920190221","272.25","TPP - Home Care","190565748","22/02/2019","Physical Disabilities Care Purchasing","PD Care Purchasing (Spot Placements)","R5420"
"Wolverhampton City Council","http://opendatacommunities.org/id/metropolitan-district-council/wolverhampton","706697","Radis Community Care","1702201920190221","196.02","TPP - Home Care","190565748","22/02/2019","Older People Care Purchasing","OP Care Purchasing (Spot Placements)","R5420"
"Wolverhampton City Council","http://opendatacommunities.org/id/metropolitan-district-council/wolverhampton","706697","Radis Community Care","1702201920190221","141.57","TPP - Home Care","190565748","22/02/2019","Older People Care Purchasing","OP Care Purchasing (Spot Placements)","R5420"
"Wolverhampton City Council","http://opendatacommunities.org/id/metropolitan-district-council/wolverhampton","706697","Radis Community Care","1702201920190221","43.56","TPP - Home Care","190565748","22/02/2019","Older People Care Purchasing","OP Care Purchasing (Spot Placements)","R5420"
"Wolverhampton City Council","http://opendatacommunities.org/id/metropolitan-district-council/wolverhampton","706697","Radis Community Care","1702201920190221","76.23","TPP - Home Care","190565748","22/02/2019","Older People Care Purchasing","OP Care Purchasing (Spot Placements)","R5420"
"Wolverhampton City Council","http://opendatacommunities.org/id/metropolitan-district-council/wolverhampton","706697","Radis Community Care","1702201920190221","98.01","TPP - Home Care","190565748","22/02/2019","Older People Care Purchasing","OP Care Purchasing (Spot Placements)","R5420"
"Wolverhampton City Council","http://opendatacommunities.org/id/metropolitan-district-council/wolverhampton","706697","Radis Community Care","1702201920190221","7.26","TPP - Home Care","190565748","22/02/2019","Older People Care Purchasing","OP Care Purchasing (Spot Placements)","R5420"
"Wolverhampton City Council","http://opendatacommunities.org/id/metropolitan-district-council/wolverhampton","706697","Radis Community Care","1702201920190221","148.83","TPP - Home Care","190565748","22/02/2019","Older People Care Purchasing","OP Care Purchasing (Spot Placements)","R5420"
"Wolverhampton City Council","http://opendatacommunities.org/id/metropolitan-district-council/wolverhampton","706697","Radis Community Care","1702201920190221","152.46","TPP - Home Care","190565748","22/02/2019","Older People Care Purchasing","OP Care Purchasing (Spot Placements)","R5420"
"Wolverhampton City Council","http://opendatacommunities.org/id/metropolitan-district-council/wolverhampton","706697","Radis Community Care","1702201920190221","196.02","TPP - Home Care","190565748","22/02/2019","Older People Care Purchasing","OP Care Purchasing (Spot Placements)","R5420"
"Wolverhampton City Council","http://opendatacommunities.org/id/metropolitan-district-council/wolverhampton","706697","Radis Community Care","1702201920190221","137.94","TPP - Home Care","190565748","22/02/2019","Older People Care Purchasing","OP Care Purchasing (Spot Placements)","R5420"
"Wolverhampton City Council","http://opendatacommunities.org/id/metropolitan-district-council/wolverhampton","706697","Radis Community Care","1702201920190221","225.06","TPP - Home Care","190565748","22/02/2019","Older People Care Purchasing","OP Care Purchasing (Spot Placements)","R5420"
"Wolverhampton City Council","http://opendatacommunities.org/id/metropolitan-district-council/wolverhampton","706697","Radis Community Care","1702201920190221","210.54","TPP - Home Care","190565748","22/02/2019","Older People Care Purchasing","OP Care Purchasing (Spot Placements)","R5420"
"Wolverhampton City Council","http://opendatacommunities.org/id/metropolitan-district-council/wolverhampton","706697","Radis Community Care","1702201920190221","166.98","TPP - Home Care","190565748","22/02/2019","Older People Care Purchasing","OP Care Purchasing (Spot Placements)","R5420"
"Wolverhampton City Council","http://opendatacommunities.org/id/metropolitan-district-council/wolverhampton","706697","Radis Community Care","1702201920190221","159.72","TPP - Home Care","190565748","22/02/2019","Physical Disabilities Care Purchasing","PD Care Purchasing (Spot Placements)","R5420"
"Wolverhampton City Council","http://opendatacommunities.org/id/metropolitan-district-council/wolverhampton","706697","Radis Community Care","1702201920190221","141.57","TPP - Home Care","190565748","22/02/2019","Physical Disabilities Care Purchasing","PD Care Purchasing (Spot Placements)","R5420"
"Wolverhampton City Council","http://opendatacommunities.org/id/metropolitan-district-council/wolverhampton","706697","Radis Community Care","1702201920190221","94.38","TPP - Home Care","190565748","22/02/2019","Older People Care Purchasing","OP Care Purchasing (Spot Placements)","R5420"
"Wolverhampton City Council","http://opendatacommunities.org/id/metropolitan-district-council/wolverhampton","706697","Radis Community Care","1702201920190221","43.56","TPP - Home Care","190565748","22/02/2019","Older People Care Purchasing","OP Care Purchasing (Spot Placements)","R5420"
"Wolverhampton City Council","http://opendatacommunities.org/id/metropolitan-district-council/wolverhampton","706697","Radis Community Care","1702201920190221","156.09","TPP - Home Care","190565748","22/02/2019","Older People Care Purchasing","OP Care Purchasing (Spot Placements)","R5420"
"Wolverhampton City Council","http://opendatacommunities.org/id/metropolitan-district-council/wolverhampton","706697","Radis Community Care","1702201920190221","101.64","TPP - Home Care","190565748","22/02/2019","Older People Care Purchasing","OP Care Purchasing (Spot Placements)","R5420"
"Wolverhampton City Council","http://opendatacommunities.org/id/metropolitan-district-council/wolverhampton","706697","Radis Community Care","1702201920190221","192.39","TPP - Home Care","190565748","22/02/2019","Older People Care Purchasing","OP Care Purchasing (Spot Placements)","R5420"
"Wolverhampton City Council","http://opendatacommunities.org/id/metropolitan-district-council/wolverhampton","706697","Radis Community Care","1702201920190221","188.76","TPP - Home Care","190565748","22/02/2019","Older People Care Purchasing","OP Care Purchasing (Spot Placements)","R5420"
"Wolverhampton City Council","http://opendatacommunities.org/id/metropolitan-district-council/wolverhampton","706697","Radis Community Care","1702201920190221","36.30","TPP - Home Care","190565748","22/02/2019","Older People Care Purchasing","OP Care Purchasing (Spot Placements)","R5420"
"Wolverhampton City Council","http://opendatacommunities.org/id/metropolitan-district-council/wolverhampton","706697","Radis Community Care","1702201920190221","29.04","TPP - Home Care","190565748","22/02/2019","Older People Care Purchasing","OP Care Purchasing (Spot Placements)","R5420"
"Wolverhampton City Council","http://opendatacommunities.org/id/metropolitan-district-council/wolverhampton","706697","Radis Community Care","1702201920190221","7.26","TPP - Home Care","190565748","22/02/2019","Older People Care Purchasing","OP Care Purchasing (Spot Placements)","R5420"
"Wolverhampton City Council","http://opendatacommunities.org/id/metropolitan-district-council/wolverhampton","706697","Radis Community Care","1702201920190221","148.83","TPP - Home Care","190565748","22/02/2019","Mental Health Assesment & Care Management","MH Care Purchasing (Spot Placements)","R5420"
"Wolverhampton City Council","http://opendatacommunities.org/id/metropolitan-district-council/wolverhampton","706697","Radis Community Care","1702201920190221","65.34","TPP - Home Care","190565748","22/02/2019","Older People Care Purchasing","OP Care Purchasing (Spot Placements)","R5420"
"Wolverhampton City Council","http://opendatacommunities.org/id/metropolitan-district-council/wolverhampton","706697","Radis Community Care","1702201920190221","65.55","TPP - Carer Support Service","190565748","22/02/2019","Carer Support","CS Care Purchasing (Spot Placements)","R5421"
"Wolverhampton City Council","http://opendatacommunities.org/id/metropolitan-district-council/wolverhampton","706697","Radis Community Care","1702201920190221","192.39","TPP - Home Care","190565748","22/02/2019","Older People Care Purchasing","OP Care Purchasing (Spot Placements)","R5420"
"Wolverhampton City Council","http://opendatacommunities.org/id/metropolitan-district-council/wolverhampton","706697","Radis Community Care","1702201920190221","32.67","TPP - Home Care","190565748","22/02/2019","Older People Care Purchasing","OP Care Purchasing (Spot Placements)","R5420"
"Wolverhampton City Council","http://opendatacommunities.org/id/metropolitan-district-council/wolverhampton","706697","Radis Community Care","1702201920190221","123.42","TPP - Home Care","190565748","22/02/2019","Older People Care Purchasing","OP Care Purchasing (Spot Placements)","R5420"
"Wolverhampton City Council","http://opendatacommunities.org/id/metropolitan-district-council/wolverhampton","706697","Radis Community Care","1702201920190221","94.38","TPP - Home Care","190565748","22/02/2019","Older People Care Purchasing","OP Care Purchasing (Spot Placements)","R5420"
"Wolverhampton City Council","http://opendatacommunities.org/id/metropolitan-district-council/wolverhampton","706697","Radis Community Care","1702201920190221","90.75","TPP - Home Care","190565748","22/02/2019","Older People Care Purchasing","OP Care Purchasing (Spot Placements)","R5420"
"Wolverhampton City Council","http://opendatacommunities.org/id/metropolitan-district-council/wolverhampton","706697","Radis Community Care","1702201920190221","43.56","TPP - Home Care","190565748","22/02/2019","Older People Care Purchasing","OP Care Purchasing (Spot Placements)","R5420"
"Wolverhampton City Council","http://opendatacommunities.org/id/metropolitan-district-council/wolverhampton","706697","Radis Community Care","1702201920190221","134.31","TPP - Home Care","190565748","22/02/2019","Older People Care Purchasing","OP Care Purchasing (Spot Placements)","R5420"
"Wolverhampton City Council","http://opendatacommunities.org/id/metropolitan-district-council/wolverhampton","706697","Radis Community Care","1702201920190221","166.98","TPP - Home Care","190565748","22/02/2019","Older People Care Purchasing","OP Care Purchasing (Spot Placements)","R5420"
"Wolverhampton City Council","http://opendatacommunities.org/id/metropolitan-district-council/wolverhampton","706697","Radis Community Care","1702201920190221","152.46","TPP - Home Care","190565748","22/02/2019","Mental Health Assesment & Care Management","MH Care Purchasing (Spot Placements)","R5420"
"Wolverhampton City Council","http://opendatacommunities.org/id/metropolitan-district-council/wolverhampton","706697","Radis Community Care","1702201920190221","27.60","TPP - Carer Support Service","190565748","22/02/2019","Carer Support","CS Care Purchasing (Spot Placements)","R5421"
"Wolverhampton City Council","http://opendatacommunities.org/id/metropolitan-district-council/wolverhampton","706697","Radis Community Care","1702201920190221","54.45","TPP - Home Care","190565748","22/02/2019","Older People Care Purchasing","OP Care Purchasing (Spot Placements)","R5420"
"Wolverhampton City Council","http://opendatacommunities.org/id/metropolitan-district-council/wolverhampton","706697","Radis Community Care","0302201920190206","203.28","TPP - Home Care","190559096","08/02/2019","Older People Care Purchasing","OP Care Purchasing (Spot Placements)","R5420"
"Wolverhampton City Council","http://opendatacommunities.org/id/metropolitan-district-council/wolverhampton","706697","Radis Community Care","0302201920190206","203.28","TPP - Home Care","190559096","08/02/2019","Older People Care Purchasing","OP Care Purchasing (Spot Placements)","R5420"
"Wolverhampton City Council","http://opendatacommunities.org/id/metropolitan-district-council/wolverhampton","706697","Radis Community Care","0302201920190206","47.19","TPP - Home Care","190559096","08/02/2019","Older People Care Purchasing","OP Care Purchasing (Spot Placements)","R5420"
"Wolverhampton City Council","http://opendatacommunities.org/id/metropolitan-district-council/wolverhampton","706697","Radis Community Care","0302201920190206","50.82","TPP - Home Care","190559096","08/02/2019","Physical Disabilities Care Purchasing","PD Care Purchasing (Spot Placements)","R5420"
"Wolverhampton City Council","http://opendatacommunities.org/id/metropolitan-district-council/wolverhampton","706697","Radis Community Care","0302201920190206","50.82","TPP - Home Care","190559096","08/02/2019","Physical Disabilities Care Purchasing","PD Care Purchasing (Spot Placements)","R5420"
"Wolverhampton City Council","http://opendatacommunities.org/id/metropolitan-district-council/wolverhampton","706697","Radis Community Care","0302201920190206","43.56","TPP - Home Care","190559096","08/02/2019","Physical Disabilities Care Purchasing","PD Care Purchasing (Spot Placements)","R5420"
"Wolverhampton City Council","http://opendatacommunities.org/id/metropolitan-district-council/wolverhampton","706697","Radis Community Care","0302201920190206","101.64","TPP - Home Care","190559096","08/02/2019","Older People Care Purchasing","OP Care Purchasing (Spot Placements)","R5420"
"Wolverhampton City Council","http://opendatacommunities.org/id/metropolitan-district-council/wolverhampton","706697","Radis Community Care","0302201920190206","7.26","TPP - Home Care","190559096","08/02/2019","Older People Care Purchasing","OP Care Purchasing (Spot Placements)","R5420"
"Wolverhampton City Council","http://opendatacommunities.org/id/metropolitan-district-council/wolverhampton","706697","Radis Community Care","0302201920190206","83.49","TPP - Home Care","190559096","08/02/2019","Learning Disabilities Care Purchasing","LD Care Purchasing (Spot Placements)","R5420"
"Wolverhampton City Council","http://opendatacommunities.org/id/metropolitan-district-council/wolverhampton","706697","Radis Community Care","0302201920190206","58.08","TPP - Home Care","190559096","08/02/2019","Older People Care Purchasing","OP Care Purchasing (Spot Placements)","R5420"
"Wolverhampton City Council","http://opendatacommunities.org/id/metropolitan-district-council/wolverhampton","706697","Radis Community Care","0302201920190206","10.89","TPP - Home Care","190559096","08/02/2019","Older People Care Purchasing","OP Care Purchasing (Spot Placements)","R5420"
"Wolverhampton City Council","http://opendatacommunities.org/id/metropolitan-district-council/wolverhampton","706697","Radis Community Care","0302201920190206","101.64","TPP - Home Care","190559096","08/02/2019","Older People Care Purchasing","OP Care Purchasing (Spot Placements)","R5420"
"Wolverhampton City Council","http://opendatacommunities.org/id/metropolitan-district-council/wolverhampton","706697","Radis Community Care","0302201920190206","50.82","TPP - Home Care","190559096","08/02/2019","Older People Care Purchasing","OP Care Purchasing (Spot Placements)","R5420"
"Wolverhampton City Council","http://opendatacommunities.org/id/metropolitan-district-council/wolverhampton","706697","Radis Community Care","0302201920190206","50.82","TPP - Home Care","190559096","08/02/2019","Older People Care Purchasing","OP Care Purchasing (Spot Placements)","R5420"
"Wolverhampton City Council","http://opendatacommunities.org/id/metropolitan-district-council/wolverhampton","706697","Radis Community Care","0302201920190206","101.64","TPP - Home Care","190559096","08/02/2019","Older People Care Purchasing","OP Care Purchasing (Spot Placements)","R5420"
"Wolverhampton City Council","http://opendatacommunities.org/id/metropolitan-district-council/wolverhampton","706697","Radis Community Care","0302201920190206","25.41","TPP - Home Care","190559096","08/02/2019","Physical Disabilities Care Purchasing","PD Care Purchasing (Spot Placements)","R5420"
"Wolverhampton City Council","http://opendatacommunities.org/id/metropolitan-district-council/wolverhampton","706697","Radis Community Care","0302201920190206","188.76","TPP - Home Care","190559096","08/02/2019","Physical Disabilities Care Purchasing","PD Care Purchasing (Spot Placements)","R5420"
"Wolverhampton City Council","http://opendatacommunities.org/id/metropolitan-district-council/wolverhampton","706697","Radis Community Care","0302201920190206","43.56","TPP - Home Care","190559096","08/02/2019","Physical Disabilities Care Purchasing","PD Care Purchasing (Spot Placements)","R5420"
"Wolverhampton City Council","http://opendatacommunities.org/id/metropolitan-district-council/wolverhampton","706697","Radis Community Care","0302201920190206","39.93","TPP - Home Care","190559096","08/02/2019","Older People Care Purchasing","OP Care Purchasing (Spot Placements)","R5420"
"Wolverhampton City Council","http://opendatacommunities.org/id/metropolitan-district-council/wolverhampton","706697","Radis Community Care","0302201920190206","76.23","TPP - Home Care","190559096","08/02/2019","Physical Disabilities Care Purchasing","PD Care Purchasing (Spot Placements)","R5420"
"Wolverhampton City Council","http://opendatacommunities.org/id/metropolitan-district-council/wolverhampton","706697","Radis Community Care","0302201920190206","72.60","TPP - Home Care","190559096","08/02/2019","Physical Disabilities Care Purchasing","PD Care Purchasing (Spot Placements)","R5420"
"Wolverhampton City Council","http://opendatacommunities.org/id/metropolitan-district-council/wolverhampton","706697","Radis Community Care","0302201920190206","32.67","TPP - Home Care","190559096","08/02/2019","Physical Disabilities Care Purchasing","PD Care Purchasing (Spot Placements)","R5420"
"Wolverhampton City Council","http://opendatacommunities.org/id/metropolitan-district-council/wolverhampton","706697","Radis Community Care","0302201920190206","232.32","TPP - Home Care","190559096","08/02/2019","Older People Care Purchasing","OP Care Purchasing (Spot Placements)","R5420"
"Wolverhampton City Council","http://opendatacommunities.org/id/metropolitan-district-council/wolverhampton","706697","Radis Community Care","0302201920190206","228.69","TPP - Home Care","190559096","08/02/2019","Older People Care Purchasing","OP Care Purchasing (Spot Placements)","R5420"
"Wolverhampton City Council","http://opendatacommunities.org/id/metropolitan-district-council/wolverhampton","706697","Radis Community Care","0302201920190206","232.32","TPP - Home Care","190559096","08/02/2019","Older People Care Purchasing","OP Care Purchasing (Spot Placements)","R5420"
"Wolverhampton City Council","http://opendatacommunities.org/id/metropolitan-district-council/wolverhampton","706697","Radis Community Care","0302201920190206","156.09","TPP - Home Care","190559096","08/02/2019","Older People Care Purchasing","OP Care Purchasing (Spot Placements)","R5420"
"Wolverhampton City Council","http://opendatacommunities.org/id/metropolitan-district-council/wolverhampton","706697","Radis Community Care","0302201920190206","50.82","TPP - Home Care","190559096","08/02/2019","Older People Care Purchasing","OP Care Purchasing (Spot Placements)","R5420"
"Wolverhampton City Council","http://opendatacommunities.org/id/metropolitan-district-council/wolverhampton","706697","Radis Community Care","0302201920190206","76.23","TPP - Home Care","190559096","08/02/2019","Older People Care Purchasing","OP Care Purchasing (Spot Placements)","R5420"
"Wolverhampton City Council","http://opendatacommunities.org/id/metropolitan-district-council/wolverhampton","706697","Radis Community Care","0302201920190206","32.67","TPP - Home Care","190559096","08/02/2019","Older People Care Purchasing","OP Care Purchasing (Spot Placements)","R5420"
"Wolverhampton City Council","http://opendatacommunities.org/id/metropolitan-district-council/wolverhampton","706697","Radis Community Care","0302201920190206","101.64","TPP - Home Care","190559096","08/02/2019","Older People Care Purchasing","OP Care Purchasing (Spot Placements)","R5420"
"Wolverhampton City Council","http://opendatacommunities.org/id/metropolitan-district-council/wolverhampton","706697","Radis Community Care","0302201920190206","203.28","TPP - Home Care","190559096","08/02/2019","Physical Disabilities Care Purchasing","PD Care Purchasing (Spot Placements)","R5420"
"Wolverhampton City Council","http://opendatacommunities.org/id/metropolitan-district-council/wolverhampton","706697","Radis Community Care","0302201920190206","257.73","TPP - Home Care","190559096","08/02/2019","Physical Disabilities Care Purchasing","PD Care Purchasing (Spot Placements)","R5420"
"Wolverhampton City Council","http://opendatacommunities.org/id/metropolitan-district-council/wolverhampton","706697","Radis Community Care","0302201920190206","98.01","TPP - Home Care","190559096","08/02/2019","Older People Care Purchasing","OP Care Purchasing (Spot Placements)","R5420"
"Wolverhampton City Council","http://opendatacommunities.org/id/metropolitan-district-council/wolverhampton","706697","Radis Community Care","0302201920190206","43.56","TPP - Home Care","190559096","08/02/2019","Older People Care Purchasing","OP Care Purchasing (Spot Placements)","R5420"
"Wolverhampton City Council","http://opendatacommunities.org/id/metropolitan-district-council/wolverhampton","706697","Radis Community Care","0302201920190206","32.67","TPP - Home Care","190559096","08/02/2019","Physical Disabilities Care Purchasing","PD Care Purchasing (Spot Placements)","R5420"
"Wolverhampton City Council","http://opendatacommunities.org/id/metropolitan-district-council/wolverhampton","706697","Radis Community Care","0302201920190206","203.28","TPP - Home Care","190559096","08/02/2019","Older People Care Purchasing","OP Care Purchasing (Spot Placements)","R5420"
"Wolverhampton City Council","http://opendatacommunities.org/id/metropolitan-district-council/wolverhampton","706697","Radis Community Care","0302201920190206","206.91","TPP - Home Care","190559096","08/02/2019","Older People Care Purchasing","OP Care Purchasing (Spot Placements)","R5420"
"Wolverhampton City Council","http://opendatacommunities.org/id/metropolitan-district-council/wolverhampton","706697","Radis Community Care","0302201920190206","199.65","TPP - Home Care","190559096","08/02/2019","Older People Care Purchasing","OP Care Purchasing (Spot Placements)","R5420"
"Wolverhampton City Council","http://opendatacommunities.org/id/metropolitan-district-council/wolverhampton","706697","Radis Community Care","0302201920190206","47.19","TPP - Home Care","190559096","08/02/2019","Older People Care Purchasing","OP Care Purchasing (Spot Placements)","R5420"
"Wolverhampton City Council","http://opendatacommunities.org/id/metropolitan-district-council/wolverhampton","706697","Radis Community Care","0302201920190206","163.35","TPP - Home Care","190559096","08/02/2019","Physical Disabilities Care Purchasing","PD Care Purchasing (Spot Placements)","R5420"
"Wolverhampton City Council","http://opendatacommunities.org/id/metropolitan-district-council/wolverhampton","706697","Radis Community Care","0302201920190206","181.50","TPP - Home Care","190559096","08/02/2019","Physical Disabilities Care Purchasing","PD Care Purchasing (Spot Placements)","R5420"
"Wolverhampton City Council","http://opendatacommunities.org/id/metropolitan-district-council/wolverhampton","706697","Radis Community Care","0302201920190206","76.23","TPP - Home Care","190559096","08/02/2019","Older People Care Purchasing","OP Care Purchasing (Spot Placements)","R5420"
"Wolverhampton City Council","http://opendatacommunities.org/id/metropolitan-district-council/wolverhampton","706697","Radis Community Care","0302201920190206","206.91","TPP - Home Care","190559096","08/02/2019","Older People Care Purchasing","OP Care Purchasing (Spot Placements)","R5420"
"Wolverhampton City Council","http://opendatacommunities.org/id/metropolitan-district-council/wolverhampton","706697","Radis Community Care","0302201920190206","43.56","TPP - Home Care","190559096","08/02/2019","Older People Care Purchasing","OP Care Purchasing (Spot Placements)","R5420"
"Wolverhampton City Council","http://opendatacommunities.org/id/metropolitan-district-council/wolverhampton","706697","Radis Community Care","0302201920190206","50.82","TPP - Home Care","190559096","08/02/2019","Older People Care Purchasing","OP Care Purchasing (Spot Placements)","R5420"
"Wolverhampton City Council","http://opendatacommunities.org/id/metropolitan-district-council/wolverhampton","706697","Radis Community Care","0302201920190206","50.82","TPP - Home Care","190559096","08/02/2019","Older People Care Purchasing","OP Care Purchasing (Spot Placements)","R5420"
"Wolverhampton City Council","http://opendatacommunities.org/id/metropolitan-district-council/wolverhampton","706697","Radis Community Care","0302201920190206","50.82","TPP - Home Care","190559096","08/02/2019","Older People Care Purchasing","OP Care Purchasing (Spot Placements)","R5420"
"Wolverhampton City Council","http://opendatacommunities.org/id/metropolitan-district-council/wolverhampton","706697","Radis Community Care","0302201920190206","50.82","TPP - Home Care","190559096","08/02/2019","Older People Care Purchasing","OP Care Purchasing (Spot Placements)","R5420"
"Wolverhampton City Council","http://opendatacommunities.org/id/metropolitan-district-council/wolverhampton","706697","Radis Community Care","0302201920190206","257.73","TPP - Home Care","190559096","08/02/2019","Older People Care Purchasing","OP Care Purchasing (Spot Placements)","R5420"
"Wolverhampton City Council","http://opendatacommunities.org/id/metropolitan-district-council/wolverhampton","706697","Radis Community Care","0302201920190206","94.38","TPP - Home Care","190559096","08/02/2019","Older People Care Purchasing","OP Care Purchasing (Spot Placements)","R5420"
"Wolverhampton City Council","http://opendatacommunities.org/id/metropolitan-district-council/wolverhampton","706697","Radis Community Care","0302201920190206","166.98","TPP - Home Care","190559096","08/02/2019","Older People Care Purchasing","OP Care Purchasing (Spot Placements)","R5420"
"Wolverhampton City Council","http://opendatacommunities.org/id/metropolitan-district-council/wolverhampton","706697","Radis Community Care","0302201920190206","170.61","TPP - Home Care","190559096","08/02/2019","Older People Care Purchasing","OP Care Purchasing (Spot Placements)","R5420"
"Wolverhampton City Council","http://opendatacommunities.org/id/metropolitan-district-council/wolverhampton","706697","Radis Community Care","0302201920190206","83.49","TPP - Home Care","190559096","08/02/2019","Older People Care Purchasing","OP Care Purchasing (Spot Placements)","R5420"
"Wolverhampton City Council","http://opendatacommunities.org/id/metropolitan-district-council/wolverhampton","706697","Radis Community Care","0302201920190206","44.85","TPP - Carer Support Service","190559096","08/02/2019","Carer Support","CS Care Purchasing (Spot Placements)","R5421"
"Wolverhampton City Council","http://opendatacommunities.org/id/metropolitan-district-council/wolverhampton","706697","Radis Community Care","0302201920190206","65.34","TPP - Home Care","190559096","08/02/2019","Physical Disabilities Care Purchasing","PD Care Purchasing (Spot Placements)","R5420"
"Wolverhampton City Council","http://opendatacommunities.org/id/metropolitan-district-council/wolverhampton","706697","Radis Community Care","0302201920190206","101.64","TPP - Home Care","190559096","08/02/2019","Older People Care Purchasing","OP Care Purchasing (Spot Placements)","R5420"
"Wolverhampton City Council","http://opendatacommunities.org/id/metropolitan-district-council/wolverhampton","706697","Radis Community Care","0302201920190206","101.64","TPP - Home Care","190559096","08/02/2019","Older People Care Purchasing","OP Care Purchasing (Spot Placements)","R5420"
"Wolverhampton City Council","http://opendatacommunities.org/id/metropolitan-district-council/wolverhampton","706697","Radis Community Care","0302201920190206","232.32","TPP - Home Care","190559096","08/02/2019","Older People Care Purchasing","OP Care Purchasing (Spot Placements)","R5420"
"Wolverhampton City Council","http://opendatacommunities.org/id/metropolitan-district-council/wolverhampton","706697","Radis Community Care","0302201920190206","72.60","TPP - Home Care","190559096","08/02/2019","Older People Care Purchasing","OP Care Purchasing (Spot Placements)","R5420"
"Wolverhampton City Council","http://opendatacommunities.org/id/metropolitan-district-council/wolverhampton","706697","Radis Community Care","0302201920190206","206.91","TPP - Home Care","190559096","08/02/2019","Older People Care Purchasing","OP Care Purchasing (Spot Placements)","R5420"
"Wolverhampton City Council","http://opendatacommunities.org/id/metropolitan-district-council/wolverhampton","706697","Radis Community Care","0302201920190206","148.83","TPP - Home Care","190559096","08/02/2019","Older People Care Purchasing","OP Care Purchasing (Spot Placements)","R5420"
"Wolverhampton City Council","http://opendatacommunities.org/id/metropolitan-district-council/wolverhampton","706697","Radis Community Care","0302201920190206","87.12","TPP - Home Care","190559096","08/02/2019","Older People Care Purchasing","OP Care Purchasing (Spot Placements)","R5420"
"Wolverhampton City Council","http://opendatacommunities.org/id/metropolitan-district-council/wolverhampton","706697","Radis Community Care","0302201920190206","152.46","TPP - Home Care","190559096","08/02/2019","Physical Disabilities Care Purchasing","PD Care Purchasing (Spot Placements)","R5420"
"Wolverhampton City Council","http://opendatacommunities.org/id/metropolitan-district-council/wolverhampton","706697","Radis Community Care","0302201920190206","134.31","TPP - Home Care","190559096","08/02/2019","Physical Disabilities Care Purchasing","PD Care Purchasing (Spot Placements)","R5420"
"Wolverhampton City Council","http://opendatacommunities.org/id/metropolitan-district-council/wolverhampton","706697","Radis Community Care","0302201920190206","101.64","TPP - Home Care","190559096","08/02/2019","Physical Disabilities Care Purchasing","PD Care Purchasing (Spot Placements)","R5420"
"Wolverhampton City Council","http://opendatacommunities.org/id/metropolitan-district-council/wolverhampton","706697","Radis Community Care","0302201920190206","101.64","TPP - Home Care","190559096","08/02/2019","Physical Disabilities Care Purchasing","PD Care Purchasing (Spot Placements)","R5420"
"Wolverhampton City Council","http://opendatacommunities.org/id/metropolitan-district-council/wolverhampton","706697","Radis Community Care","0302201920190206","203.28","TPP - Home Care","190559096","08/02/2019","Older People Care Purchasing","OP Care Purchasing (Spot Placements)","R5420"
"Wolverhampton City Council","http://opendatacommunities.org/id/metropolitan-district-council/wolverhampton","706697","Radis Community Care","0302201920190206","29.04","TPP - Home Care","190559096","08/02/2019","Older People Care Purchasing","OP Care Purchasing (Spot Placements)","R5420"
"Wolverhampton City Council","http://opendatacommunities.org/id/metropolitan-district-council/wolverhampton","706697","Radis Community Care","0302201920190206","29.04","TPP - Home Care","190559096","08/02/2019","Older People Care Purchasing","OP Care Purchasing (Spot Placements)","R5420"
"Wolverhampton City Council","http://opendatacommunities.org/id/metropolitan-district-council/wolverhampton","706697","Radis Community Care","0302201920190206","210.54","TPP - Home Care","190559096","08/02/2019","Older People Care Purchasing","OP Care Purchasing (Spot Placements)","R5420"
"Wolverhampton City Council","http://opendatacommunities.org/id/metropolitan-district-council/wolverhampton","706697","Radis Community Care","0302201920190206","101.64","TPP - Home Care","190559096","08/02/2019","Older People Care Purchasing","OP Care Purchasing (Spot Placements)","R5420"
"Wolverhampton City Council","http://opendatacommunities.org/id/metropolitan-district-council/wolverhampton","706697","Radis Community Care","0302201920190206","123.42","TPP - Home Care","190559096","08/02/2019","Older People Care Purchasing","OP Care Purchasing (Spot Placements)","R5420"
"Wolverhampton City Council","http://opendatacommunities.org/id/metropolitan-district-council/wolverhampton","706697","Radis Community Care","0302201920190206","50.82","TPP - Home Care","190559096","08/02/2019","Older People Care Purchasing","OP Care Purchasing (Spot Placements)","R5420"
"Wolverhampton City Council","http://opendatacommunities.org/id/metropolitan-district-council/wolverhampton","706697","Radis Community Care","0302201920190206","221.43","TPP - Home Care","190559096","08/02/2019","Older People Care Purchasing","OP Care Purchasing (Spot Placements)","R5420"
"Wolverhampton City Council","http://opendatacommunities.org/id/metropolitan-district-council/wolverhampton","706697","Radis Community Care","0302201920190206","54.45","TPP - Home Care","190559096","08/02/2019","Older People Care Purchasing","OP Care Purchasing (Spot Placements)","R5420"
"Wolverhampton City Council","http://opendatacommunities.org/id/metropolitan-district-council/wolverhampton","706697","Radis Community Care","0302201920190206","177.87","TPP - Home Care","190559096","08/02/2019","Older People Care Purchasing","OP Care Purchasing (Spot Placements)","R5420"
"Wolverhampton City Council","http://opendatacommunities.org/id/metropolitan-district-council/wolverhampton","706697","Radis Community Care","0302201920190206","235.95","TPP - Home Care","190559096","08/02/2019","Older People Care Purchasing","OP Care Purchasing (Spot Placements)","R5420"
"Wolverhampton City Council","http://opendatacommunities.org/id/metropolitan-district-council/wolverhampton","706697","Radis Community Care","0302201920190206","221.43","TPP - Home Care","190559096","08/02/2019","Older People Care Purchasing","OP Care Purchasing (Spot Placements)","R5420"
"Wolverhampton City Council","http://opendatacommunities.org/id/metropolitan-district-council/wolverhampton","706697","Radis Community Care","0302201920190206","43.56","TPP - Home Care","190559096","08/02/2019","Physical Disabilities Care Purchasing","PD Care Purchasing (Spot Placements)","R5420"
"Wolverhampton City Council","http://opendatacommunities.org/id/metropolitan-district-council/wolverhampton","706697","Radis Community Care","0302201920190206","196.02","TPP - Home Care","190559096","08/02/2019","Older People Care Purchasing","OP Care Purchasing (Spot Placements)","R5420"
"Wolverhampton City Council","http://opendatacommunities.org/id/metropolitan-district-council/wolverhampton","706697","Radis Community Care","0302201920190206","199.65","TPP - Home Care","190559096","08/02/2019","Older People Care Purchasing","OP Care Purchasing (Spot Placements)","R5420"
"Wolverhampton City Council","http://opendatacommunities.org/id/metropolitan-district-council/wolverhampton","706697","Radis Community Care","0302201920190206","68.97","TPP - Home Care","190559096","08/02/2019","Older People Care Purchasing","OP Care Purchasing (Spot Placements)","R5420"
"Wolverhampton City Council","http://opendatacommunities.org/id/metropolitan-district-council/wolverhampton","706697","Radis Community Care","0302201920190206","156.09","TPP - Home Care","190559096","08/02/2019","Older People Care Purchasing","OP Care Purchasing (Spot Placements)","R5420"
"Wolverhampton City Council","http://opendatacommunities.org/id/metropolitan-district-council/wolverhampton","706697","Radis Community Care","0302201920190206","156.09","TPP - Home Care","190559096","08/02/2019","Older People Care Purchasing","OP Care Purchasing (Spot Placements)","R5420"
"Wolverhampton City Council","http://opendatacommunities.org/id/metropolitan-district-council/wolverhampton","706697","Radis Community Care","0302201920190206","50.82","TPP - Home Care","190559096","08/02/2019","Older People Care Purchasing","OP Care Purchasing (Spot Placements)","R5420"
"Wolverhampton City Council","http://opendatacommunities.org/id/metropolitan-district-council/wolverhampton","706697","Radis Community Care","0302201920190206","43.56","TPP - Home Care","190559096","08/02/2019","Older People Care Purchasing","OP Care Purchasing (Spot Placements)","R5420"
"Wolverhampton City Council","http://opendatacommunities.org/id/metropolitan-district-council/wolverhampton","706697","Radis Community Care","0302201920190206","188.76","TPP - Home Care","190559096","08/02/2019","Older People Care Purchasing","OP Care Purchasing (Spot Placements)","R5420"
"Wolverhampton City Council","http://opendatacommunities.org/id/metropolitan-district-council/wolverhampton","706697","Radis Community Care","0302201920190206","145.20","TPP - Home Care","190559096","08/02/2019","Older People Care Purchasing","OP Care Purchasing (Spot Placements)","R5420"
"Wolverhampton City Council","http://opendatacommunities.org/id/metropolitan-district-council/wolverhampton","706697","Radis Community Care","0302201920190206","7.26","TPP - Home Care","190559096","08/02/2019","Older People Care Purchasing","OP Care Purchasing (Spot Placements)","R5420"
"Wolverhampton City Council","http://opendatacommunities.org/id/metropolitan-district-council/wolverhampton","706697","Radis Community Care","0302201920190206","3.63","TPP - Home Care","190559096","08/02/2019","Older People Care Purchasing","OP Care Purchasing (Spot Placements)","R5420"
"Wolverhampton City Council","http://opendatacommunities.org/id/metropolitan-district-council/wolverhampton","706697","Radis Community Care","0302201920190206","221.43","TPP - Home Care","190559096","08/02/2019","Older People Care Purchasing","OP Care Purchasing (Spot Placements)","R5420"
"Wolverhampton City Council","http://opendatacommunities.org/id/metropolitan-district-council/wolverhampton","706697","Radis Community Care","0302201920190206","196.02","TPP - Home Care","190559096","08/02/2019","Older People Care Purchasing","OP Care Purchasing (Spot Placements)","R5420"
"Wolverhampton City Council","http://opendatacommunities.org/id/metropolitan-district-council/wolverhampton","706697","Radis Community Care","0302201920190206","170.61","TPP - Home Care","190559096","08/02/2019","Older People Care Purchasing","OP Care Purchasing (Spot Placements)","R5420"
"Wolverhampton City Council","http://opendatacommunities.org/id/metropolitan-district-council/wolverhampton","706697","Radis Community Care","0302201920190206","156.09","TPP - Home Care","190559096","08/02/2019","Physical Disabilities Care Purchasing","PD Care Purchasing (Spot Placements)","R5420"
"Wolverhampton City Council","http://opendatacommunities.org/id/metropolitan-district-council/wolverhampton","706697","Radis Community Care","0302201920190206","130.68","TPP - Home Care","190559096","08/02/2019","Physical Disabilities Care Purchasing","PD Care Purchasing (Spot Placements)","R5420"
"Wolverhampton City Council","http://opendatacommunities.org/id/metropolitan-district-council/wolverhampton","706697","Radis Community Care","0302201920190206","90.75","TPP - Home Care","190559096","08/02/2019","Older People Care Purchasing","OP Care Purchasing (Spot Placements)","R5420"
"Wolverhampton City Council","http://opendatacommunities.org/id/metropolitan-district-council/wolverhampton","706697","Radis Community Care","0302201920190206","43.56","TPP - Home Care","190559096","08/02/2019","Older People Care Purchasing","OP Care Purchasing (Spot Placements)","R5420"
"Wolverhampton City Council","http://opendatacommunities.org/id/metropolitan-district-council/wolverhampton","706697","Radis Community Care","0302201920190206","152.46","TPP - Home Care","190559096","08/02/2019","Older People Care Purchasing","OP Care Purchasing (Spot Placements)","R5420"
"Wolverhampton City Council","http://opendatacommunities.org/id/metropolitan-district-council/wolverhampton","706697","Radis Community Care","0302201920190206","101.64","TPP - Home Care","190559096","08/02/2019","Older People Care Purchasing","OP Care Purchasing (Spot Placements)","R5420"
"Wolverhampton City Council","http://opendatacommunities.org/id/metropolitan-district-council/wolverhampton","706697","Radis Community Care","0302201920190206","36.30","TPP - Home Care","190559096","08/02/2019","Older People Care Purchasing","OP Care Purchasing (Spot Placements)","R5420"
"Wolverhampton City Council","http://opendatacommunities.org/id/metropolitan-district-council/wolverhampton","706697","Radis Community Care","0302201920190206","36.30","TPP - Home Care","190559096","08/02/2019","Older People Care Purchasing","OP Care Purchasing (Spot Placements)","R5420"
"Wolverhampton City Council","http://opendatacommunities.org/id/metropolitan-district-council/wolverhampton","706697","Radis Community Care","0302201920190206","199.65","TPP - Home Care","190559096","08/02/2019","Older People Care Purchasing","OP Care Purchasing (Spot Placements)","R5420"
"Wolverhampton City Council","http://opendatacommunities.org/id/metropolitan-district-council/wolverhampton","706697","Radis Community Care","0302201920190206","137.94","TPP - Home Care","190559096","08/02/2019","Mental Health Assesment & Care Management","MH Care Purchasing (Spot Placements)","R5420"
"Wolverhampton City Council","http://opendatacommunities.org/id/metropolitan-district-council/wolverhampton","706697","Radis Community Care","0302201920190206","61.71","TPP - Home Care","190559096","08/02/2019","Older People Care Purchasing","OP Care Purchasing (Spot Placements)","R5420"
"Wolverhampton City Council","http://opendatacommunities.org/id/metropolitan-district-council/wolverhampton","706697","Radis Community Care","0302201920190206","75.90","TPP - Carer Support Service","190559096","08/02/2019","Carer Support","CS Care Purchasing (Spot Placements)","R5421"
"Wolverhampton City Council","http://opendatacommunities.org/id/metropolitan-district-council/wolverhampton","706697","Radis Community Care","0302201920190206","188.76","TPP - Home Care","190559096","08/02/2019","Older People Care Purchasing","OP Care Purchasing (Spot Placements)","R5420"
"Wolverhampton City Council","http://opendatacommunities.org/id/metropolitan-district-council/wolverhampton","706697","Radis Community Care","0302201920190206","29.04","TPP - Home Care","190559096","08/02/2019","Older People Care Purchasing","OP Care Purchasing (Spot Placements)","R5420"
"Wolverhampton City Council","http://opendatacommunities.org/id/metropolitan-district-council/wolverhampton","706697","Radis Community Care","0302201920190206","127.05","TPP - Home Care","190559096","08/02/2019","Older People Care Purchasing","OP Care Purchasing (Spot Placements)","R5420"
"Wolverhampton City Council","http://opendatacommunities.org/id/metropolitan-district-council/wolverhampton","706697","Radis Community Care","0302201920190206","101.64","TPP - Home Care","190559096","08/02/2019","Older People Care Purchasing","OP Care Purchasing (Spot Placements)","R5420"
"Wolverhampton City Council","http://opendatacommunities.org/id/metropolitan-district-council/wolverhampton","706697","Radis Community Care","0302201920190206","152.46","TPP - Home Care","190559096","08/02/2019","Mental Health Assesment & Care Management","MH Care Purchasing (Spot Placements)","R5420"
"Wolverhampton City Council","http://opendatacommunities.org/id/metropolitan-district-council/wolverhampton","706697","Radis Community Care","0302201920190206","68.97","TPP - Home Care","190559096","08/02/2019","Older People Care Purchasing","OP Care Purchasing (Spot Placements)","R5420"
"Wolverhampton City Council","http://opendatacommunities.org/id/metropolitan-district-council/wolverhampton","706697","Radis Community Care","0302201920190206","87.12","TPP - Home Care","190559096","08/02/2019","Older People Care Purchasing","OP Care Purchasing (Spot Placements)","R5420"
"Wolverhampton City Council","http://opendatacommunities.org/id/metropolitan-district-council/wolverhampton","706697","Radis Community Care","0302201920190206","65.34","TPP - Home Care","190559096","08/02/2019","Older People Care Purchasing","OP Care Purchasing (Spot Placements)","R5420"
"Wolverhampton City Council","http://opendatacommunities.org/id/metropolitan-district-council/wolverhampton","706697","Radis Community Care","0302201920190206","112.53","TPP - Home Care","190559096","08/02/2019","Older People Care Purchasing","OP Care Purchasing (Spot Placements)","R5420"
"Wolverhampton City Council","http://opendatacommunities.org/id/metropolitan-district-council/wolverhampton","706697","Radis Community Care","0302201920190206","69.00","TPP - Carer Support Service","190559096","08/02/2019","Carer Support","CS Care Purchasing (Spot Placements)","R5421"
"Wolverhampton City Council","http://opendatacommunities.org/id/metropolitan-district-council/wolverhampton","706697","Radis Community Care","0302201920190206","47.19","TPP - Home Care","190559096","08/02/2019","Older People Care Purchasing","OP Care Purchasing (Spot Placements)","R5420"
"Wolverhampton City Council","http://opendatacommunities.org/id/metropolitan-district-council/wolverhampton","706697","Radis Community Care","0302201920190206","257.73","TPP - Home Care","190559096","08/02/2019","Physical Disabilities Care Purchasing","PD Care Purchasing (Spot Placements)","R5420"
"Wolverhampton City Council","http://opendatacommunities.org/id/metropolitan-district-council/wolverhampton","706697","Radis Community Care","0302201920190206","257.73","TPP - Home Care","190559096","08/02/2019","Physical Disabilities Care Purchasing","PD Care Purchasing (Spot Placements)","R5420"
"Wolverhampton City Council","http://opendatacommunities.org/id/metropolitan-district-council/wolverhampton","706697","Radis Community Care","0302201920190206","82.80","TPP - Carer Support Service","190559096","08/02/2019","Carer Support","CS Care Purchasing (Spot Placements)","R5421"
"Wolverhampton City Council","http://opendatacommunities.org/id/metropolitan-district-council/wolverhampton","706697","Radis Community Care","0302201920190206","127.05","TPP - Home Care","190559096","08/02/2019","Older People Care Purchasing","OP Care Purchasing (Spot Placements)","R5420"
"Wolverhampton City Council","http://opendatacommunities.org/id/metropolitan-district-council/wolverhampton","706697","Radis Community Care","0302201920190206","90.75","TPP - Home Care","190559096","08/02/2019","Older People Care Purchasing","OP Care Purchasing (Spot Placements)","R5420"
"Wolverhampton City Council","http://opendatacommunities.org/id/metropolitan-district-council/wolverhampton","706697","Radis Community Care","0302201920190206","283.14","TPP - Home Care","190559096","08/02/2019","Physical Disabilities Care Purchasing","PD Care Purchasing (Spot Placements)","R5420"
"Wolverhampton City Council","http://opendatacommunities.org/id/metropolitan-district-council/wolverhampton","706697","Radis Community Care","0302201920190206","196.02","TPP - Home Care","190559096","08/02/2019","Older People Care Purchasing","OP Care Purchasing (Spot Placements)","R5420"
"Wolverhampton City Council","http://opendatacommunities.org/id/metropolitan-district-council/wolverhampton","706697","Radis Community Care","0302201920190206","148.83","TPP - Home Care","190559096","08/02/2019","Older People Care Purchasing","OP Care Purchasing (Spot Placements)","R5420"
"Wolverhampton City Council","http://opendatacommunities.org/id/metropolitan-district-council/wolverhampton","706697","Radis Community Care","0302201920190206","98.01","TPP - Home Care","190559096","08/02/2019","Older People Care Purchasing","OP Care Purchasing (Spot Placements)","R5420"
"Wolverhampton City Council","http://opendatacommunities.org/id/metropolitan-district-council/wolverhampton","706697","Radis Community Care","0302201920190206","94.38","TPP - Home Care","190559096","08/02/2019","Older People Care Purchasing","OP Care Purchasing (Spot Placements)","R5420"
"Wolverhampton City Council","http://opendatacommunities.org/id/metropolitan-district-council/wolverhampton","706697","Radis Community Care","0302201920190206","181.50","TPP - Home Care","190559096","08/02/2019","Older People Care Purchasing","OP Care Purchasing (Spot Placements)","R5420"
"Wolverhampton City Council","http://opendatacommunities.org/id/metropolitan-district-council/wolverhampton","706697","Radis Community Care","0302201920190206","170.61","TPP - Home Care","190559096","08/02/2019","Older People Care Purchasing","OP Care Purchasing (Spot Placements)","R5420"
"Wolverhampton City Council","http://opendatacommunities.org/id/metropolitan-district-council/wolverhampton","706705","Rainbow Taxis Limited","6289","1,675.80","Client Transport","130243469","08/02/2019","Special Educational Needs","Special - Transport","R3042"
"Wolverhampton City Council","http://opendatacommunities.org/id/metropolitan-district-council/wolverhampton","706705","Rainbow Taxis Limited","6293","1,245.80","Client Transport","130243473","08/02/2019","Special Educational Needs","Special - Transport","R3042"
"Wolverhampton City Council","http://opendatacommunities.org/id/metropolitan-district-council/wolverhampton","706705","Rainbow Taxis Limited","6302","1,216.25","Client Transport","130243481","08/02/2019","Special Educational Needs","Special - Transport","R3042"
"Wolverhampton City Council","http://opendatacommunities.org/id/metropolitan-district-council/wolverhampton","706705","Rainbow Taxis Limited","6308","1,245.60","Client Transport","130243487","08/02/2019","Special Educational Needs","Student Awards","R3042"
"Wolverhampton City Council","http://opendatacommunities.org/id/metropolitan-district-council/wolverhampton","706705","Rainbow Taxis Limited","6304","1,463.00","Client Transport","130243483","08/02/2019","Special Educational Needs","Primary - Transport","R3042"
"Wolverhampton City Council","http://opendatacommunities.org/id/metropolitan-district-council/wolverhampton","706705","Rainbow Taxis Limited","6305","1,463.00","Client Transport","130243484","08/02/2019","Special Educational Needs","Primary - Transport","R3042"
"Wolverhampton City Council","http://opendatacommunities.org/id/metropolitan-district-council/wolverhampton","706705","Rainbow Taxis Limited","6309","1,463.00","Client Transport","130243488","08/02/2019","Special Educational Needs","Special - Transport","R3042"
"Wolverhampton City Council","http://opendatacommunities.org/id/metropolitan-district-council/wolverhampton","706705","Rainbow Taxis Limited","6307","1,234.80","Client Transport","130243486","08/02/2019","Special Educational Needs","Special - Transport","R3042"
"Wolverhampton City Council","http://opendatacommunities.org/id/metropolitan-district-council/wolverhampton","706705","Rainbow Taxis Limited","6295","1,587.49","Client Transport","130244224","15/02/2019","Special Educational Needs","Special - Transport","R3042"
"Wolverhampton City Council","http://opendatacommunities.org/id/metropolitan-district-council/wolverhampton","706705","Rainbow Taxis Limited","6292","1,134.68","Client Transport","130243472","08/02/2019","Special Educational Needs","Special - Transport","R3042"
"Wolverhampton City Council","http://opendatacommunities.org/id/metropolitan-district-council/wolverhampton","706705","Rainbow Taxis Limited","6294","1,127.10","Client Transport","130243474","08/02/2019","Special Educational Needs","Special - Transport","R3042"
"Wolverhampton City Council","http://opendatacommunities.org/id/metropolitan-district-council/wolverhampton","706705","Rainbow Taxis Limited","6296","1,580.40","Client Transport","130243475","08/02/2019","Special Educational Needs","Special - Transport","R3042"
"Wolverhampton City Council","http://opendatacommunities.org/id/metropolitan-district-council/wolverhampton","706705","Rainbow Taxis Limited","6297","1,615.00","Client Transport","130243476","08/02/2019","Special Educational Needs","Special - Transport","R3042"
"Wolverhampton City Council","http://opendatacommunities.org/id/metropolitan-district-council/wolverhampton","706705","Rainbow Taxis Limited","6303","1,350.00","Client Transport","130243482","08/02/2019","Special Educational Needs","Special - Transport","R3042"
"Wolverhampton City Council","http://opendatacommunities.org/id/metropolitan-district-council/wolverhampton","706705","Rainbow Taxis Limited","6314","1,086.80","Client Transport","130243490","08/02/2019","Special Educational Needs","Special - Transport","R3042"
"Wolverhampton City Council","http://opendatacommunities.org/id/metropolitan-district-council/wolverhampton","706705","Rainbow Taxis Limited","6310","657.00","Client Transport","130243489","08/02/2019","Special Educational Needs","Home to College Transport","R3042"
"Wolverhampton City Council","http://opendatacommunities.org/id/metropolitan-district-council/wolverhampton","706705","Rainbow Taxis Limited","6306","1,577.00","Client Transport","130243485","08/02/2019","Special Educational Needs","Primary - Transport","R3042"
"Wolverhampton City Council","http://opendatacommunities.org/id/metropolitan-district-council/wolverhampton","706705","Rainbow Taxis Limited","6301","1,027.65","Client Transport","130243480","08/02/2019","Special Educational Needs","Special - Transport","R3042"
"Wolverhampton City Council","http://opendatacommunities.org/id/metropolitan-district-council/wolverhampton","706705","Rainbow Taxis Limited","6291","1,102.00","Client Transport","130243471","08/02/2019","Special Educational Needs","Special - Transport","R3042"
"Wolverhampton City Council","http://opendatacommunities.org/id/metropolitan-district-council/wolverhampton","706705","Rainbow Taxis Limited","6300","1,494.00","Client Transport","130243479","08/02/2019","Special Educational Needs","Primary - Transport","R3042"
"Wolverhampton City Council","http://opendatacommunities.org/id/metropolitan-district-council/wolverhampton","706705","Rainbow Taxis Limited","6290","1,502.85","Client Transport","130243470","08/02/2019","Special Educational Needs","Special - Transport","R3042"
"Wolverhampton City Council","http://opendatacommunities.org/id/metropolitan-district-council/wolverhampton","706705","Rainbow Taxis Limited","6299","1,326.00","Client Transport","130243478","08/02/2019","Special Educational Needs","Special - Transport","R3042"
"Wolverhampton City Council","http://opendatacommunities.org/id/metropolitan-district-council/wolverhampton","706705","Rainbow Taxis Limited","6298","1,530.00","Client Transport","130243477","08/02/2019","Special Educational Needs","Special - Transport","R3042"
"Wolverhampton City Council","http://opendatacommunities.org/id/metropolitan-district-council/wolverhampton","706705","Rainbow Taxis Limited","6311","1,260.00","Client Transport","130243242","08/02/2019","Learning Disabilities Care Purchasing","LD Care Purchasing (Spot Placements)","R3042"
"Wolverhampton City Council","http://opendatacommunities.org/id/metropolitan-district-council/wolverhampton","706718","Raring2Go","R2G01242","485.00","Marketing \ Non-staff advertising","130242020","20/02/2019","Visitor Economy","Audience Development","R4317"
"Wolverhampton City Council","http://opendatacommunities.org/id/metropolitan-district-council/wolverhampton","706779","Re-Entry Project","8402","2,184.00","TPP - Alternative Provision of Education","130241146","20/02/2019","Inclusion Support","Alternative Provision","R5037"
"Wolverhampton City Council","http://opendatacommunities.org/id/metropolitan-district-council/wolverhampton","706779","Re-Entry Project","8303","1,755.00","TPP - Alternative Provision of Education","130236857","20/02/2019","Inclusion Support","Alternative Provision","R5037"
"Wolverhampton City Council","http://opendatacommunities.org/id/metropolitan-district-council/wolverhampton","706779","Re-Entry Project","8410","2,184.00","TPP - Alternative Provision of Education","130240405","20/02/2019","Inclusion Support","Alternative Provision","R5037"
"Wolverhampton City Council","http://opendatacommunities.org/id/metropolitan-district-council/wolverhampton","706779","Re-Entry Project","8405","2,184.00","TPP - Alternative Provision of Education","130241147","20/02/2019","Inclusion Support","Alternative Provision","R5037"
"Wolverhampton City Council","http://opendatacommunities.org/id/metropolitan-district-council/wolverhampton","706779","Re-Entry Project","8407","2,184.00","TPP - Alternative Provision of Education","130241148","20/02/2019","Inclusion Support","Alternative Provision","R5037"
"Wolverhampton City Council","http://opendatacommunities.org/id/metropolitan-district-council/wolverhampton","706779","Re-Entry Project","8409","2,184.00","TPP - Alternative Provision of Education","130241150","20/02/2019","Inclusion Support","Alternative Provision","R5037"
"Wolverhampton City Council","http://opendatacommunities.org/id/metropolitan-district-council/wolverhampton","706779","Re-Entry Project","8408","2,184.00","TPP - Alternative Provision of Education","130241149","20/02/2019","Inclusion Support","Alternative Provision","R5037"
"Wolverhampton City Council","http://opendatacommunities.org/id/metropolitan-district-council/wolverhampton","706779","Re-Entry Project","8502","1,755.00","TPP - Alternative Provision of Education","130243243","20/02/2019","Inclusion Support","Alternative Provision","R5037"
"Wolverhampton City Council","http://opendatacommunities.org/id/metropolitan-district-council/wolverhampton","706779","Re-Entry Project","8504","1,755.00","TPP - Alternative Provision of Education","130243244","20/02/2019","Inclusion Support","Alternative Provision","R5037"
"Wolverhampton City Council","http://opendatacommunities.org/id/metropolitan-district-council/wolverhampton","706779","Re-Entry Project","8507","1,755.00","TPP - Alternative Provision of Education","130243246","20/02/2019","Inclusion Support","Alternative Provision","R5037"
"Wolverhampton City Council","http://opendatacommunities.org/id/metropolitan-district-council/wolverhampton","706779","Re-Entry Project","8510","1,755.00","TPP - Alternative Provision of Education","130243247","20/02/2019","Inclusion Support","Alternative Provision","R5037"
"Wolverhampton City Council","http://opendatacommunities.org/id/metropolitan-district-council/wolverhampton","706779","Re-Entry Project","0018","-135.00","TPP - Alternative Provision of Education","130242474","20/02/2019","Inclusion Support","Alternative Provision","R5037"
"Wolverhampton City Council","http://opendatacommunities.org/id/metropolitan-district-council/wolverhampton","706779","Re-Entry Project","8509","1,890.00","TPP - Alternative Provision of Education","130243043","20/02/2019","Inclusion Support","Alternative Provision","R5037"
"Wolverhampton City Council","http://opendatacommunities.org/id/metropolitan-district-council/wolverhampton","706779","Re-Entry Project","8330","1,313.00","TPP - Alternative Provision of Education","130237171","20/02/2019","Inclusion Support","Alternative Provision","R5037"
"Wolverhampton City Council","http://opendatacommunities.org/id/metropolitan-district-council/wolverhampton","706779","Re-Entry Project","8413","2,376.00","TPP - Alternative Provision of Education","130240406","20/02/2019","Inclusion Support","Alternative Provision","R5037"
"Wolverhampton City Council","http://opendatacommunities.org/id/metropolitan-district-council/wolverhampton","706779","Re-Entry Project","8417","2,376.00","TPP - Alternative Provision of Education","130241275","20/02/2019","Inclusion Support","Pupil Premium","R5037"
"Wolverhampton City Council","http://opendatacommunities.org/id/metropolitan-district-council/wolverhampton","706779","Re-Entry Project","8328","182.00","TPP - Alternative Provision of Education","130237169","20/02/2019","Inclusion Support","Alternative Provision","R5037"
"Wolverhampton City Council","http://opendatacommunities.org/id/metropolitan-district-council/wolverhampton","706779","Re-Entry Project","8324","286.00","TPP - Alternative Provision of Education","130236248","20/02/2019","Inclusion Support","Alternative Provision","R5037"
"Wolverhampton City Council","http://opendatacommunities.org/id/metropolitan-district-council/wolverhampton","706779","Re-Entry Project","0015","-1,482.00","TPP - Alternative Provision of Education","130241567","20/02/2019","Inclusion Support","Alternative Provision","R5037"
"Wolverhampton City Council","http://opendatacommunities.org/id/metropolitan-district-council/wolverhampton","706779","Re-Entry Project","0014","-1,326.00","TPP - Alternative Provision of Education","130237035","20/02/2019","Inclusion Support","Alternative Provision","R5037"
"Wolverhampton City Council","http://opendatacommunities.org/id/metropolitan-district-council/wolverhampton","706779","Re-Entry Project","0020","-1,782.00","TPP - Alternative Provision of Education","130243841","20/02/2019","Inclusion Support","Alternative Provision","R5037"
"Wolverhampton City Council","http://opendatacommunities.org/id/metropolitan-district-council/wolverhampton","706779","Re-Entry Project","0011","-1,755.00","TPP - Alternative Provision of Education","130236420","20/02/2019","Inclusion Support","Alternative Provision","R5037"
"Wolverhampton City Council","http://opendatacommunities.org/id/metropolitan-district-council/wolverhampton","706779","Re-Entry Project","0010","-1,755.00","TPP - Alternative Provision of Education","130236856","20/02/2019","Inclusion Support","Alternative Provision","R5037"
"Wolverhampton City Council","http://opendatacommunities.org/id/metropolitan-district-council/wolverhampton","706779","Re-Entry Project","0024","-741.00","TPP - Alternative Provision of Education","130244801","20/02/2019","Inclusion Support","Alternative Provision","R5037"
"Wolverhampton City Council","http://opendatacommunities.org/id/metropolitan-district-council/wolverhampton","706779","Re-Entry Project","0023","-798.00","TPP - Alternative Provision of Education","130244800","20/02/2019","Inclusion Support","Alternative Provision","R5037"
"Wolverhampton City Council","http://opendatacommunities.org/id/metropolitan-district-council/wolverhampton","706779","Re-Entry Project","0019","-1,170.00","TPP - Alternative Provision of Education","130242475","20/02/2019","Inclusion Support","Alternative Provision","R5037"
"Wolverhampton City Council","http://opendatacommunities.org/id/metropolitan-district-council/wolverhampton","706779","Re-Entry Project","8505","1,092.00","TPP - Alternative Provision of Education","130243042","20/02/2019","Inclusion Support","Alternative Provision","R5037"
"Wolverhampton City Council","http://opendatacommunities.org/id/metropolitan-district-council/wolverhampton","706779","Re-Entry Project","8422","742.50","TPP - Alternative Provision of Education","130240533","20/02/2019","Inclusion Support","Alternative Provision","R5037"
"Wolverhampton City Council","http://opendatacommunities.org/id/metropolitan-district-council/wolverhampton","706779","Re-Entry Project","0021","-1,170.00","TPP - Alternative Provision of Education","130244311","20/02/2019","Inclusion Support","Alternative Provision","R5037"
"Wolverhampton City Council","http://opendatacommunities.org/id/metropolitan-district-council/wolverhampton","706779","Re-Entry Project","8302","1,261.00","TPP - Alternative Provision of Education","130235936","20/02/2019","Inclusion Support","Alternative Provision","R5037"
"Wolverhampton City Council","http://opendatacommunities.org/id/metropolitan-district-council/wolverhampton","706779","Re-Entry Project","8427","1,188.00","TPP - Alternative Provision of Education","130241892","20/02/2019","Inclusion Support","Alternative Provision","R5037"
"Wolverhampton City Council","http://opendatacommunities.org/id/metropolitan-district-council/wolverhampton","706779","Re-Entry Project","8424","1,482.00","TPP - Alternative Provision of Education","130241568","20/02/2019","Inclusion Support","Alternative Provision","R5037"
"Wolverhampton City Council","http://opendatacommunities.org/id/metropolitan-district-council/wolverhampton","706779","Re-Entry Project","8501","1,404.00","TPP - Alternative Provision of Education","130243041","20/02/2019","Inclusion Support","Alternative Provision","R5037"
"Wolverhampton City Council","http://opendatacommunities.org/id/metropolitan-district-council/wolverhampton","706779","Re-Entry Project","8426","1,170.00","TPP - Alternative Provision of Education","130241570","20/02/2019","Inclusion Support","Alternative Provision","R5037"
"Wolverhampton City Council","http://opendatacommunities.org/id/metropolitan-district-council/wolverhampton","706779","Re-Entry Project","8404","1,375.40","TPP - Alternative Provision of Education","130240404","20/02/2019","Inclusion Support","Alternative Provision","R5037"
"Wolverhampton City Council","http://opendatacommunities.org/id/metropolitan-district-council/wolverhampton","706779","Re-Entry Project","8425","1,326.00","TPP - Alternative Provision of Education","130241569","20/02/2019","Inclusion Support","Alternative Provision","R5037"
"Wolverhampton City Council","http://opendatacommunities.org/id/metropolitan-district-council/wolverhampton","706779","Re-Entry Project","8423","2,058.00","TPP - Alternative Provision of Education","130240732","20/02/2019","Inclusion Support","Alternative Provision","R5037"
"Wolverhampton City Council","http://opendatacommunities.org/id/metropolitan-district-council/wolverhampton","706779","Re-Entry Project","8329","1,456.00","TPP - Alternative Provision of Education","130237170","20/02/2019","Inclusion Support","Alternative Provision","R5037"
"Wolverhampton City Council","http://opendatacommunities.org/id/metropolitan-district-council/wolverhampton","706779","Re-Entry Project","8304","975.00","TPP - Alternative Provision of Education","130235937","20/02/2019","Inclusion Support","Alternative Provision","R5037"
"Wolverhampton City Council","http://opendatacommunities.org/id/metropolitan-district-council/wolverhampton","706779","Re-Entry Project","8314","1,782.00","TPP - Alternative Provision of Education","130235939","20/02/2019","Inclusion Support","Alternative Provision","R5037"
"Wolverhampton City Council","http://opendatacommunities.org/id/metropolitan-district-council/wolverhampton","706779","Re-Entry Project","8517","1,782.00","TPP - Alternative Provision of Education","130243045","20/02/2019","Inclusion Support","Alternative Provision","R5037"
"Wolverhampton City Council","http://opendatacommunities.org/id/metropolitan-district-council/wolverhampton","706779","Re-Entry Project","8401","1,791.40","TPP - Alternative Provision of Education","130240403","20/02/2019","Inclusion Support","Alternative Provision","R5037"
"Wolverhampton City Council","http://opendatacommunities.org/id/metropolitan-district-council/wolverhampton","706779","Re-Entry Project","8514","1,782.00","TPP - Alternative Provision of Education","130243248","20/02/2019","Inclusion Support","Alternative Provision","R5037"
"Wolverhampton City Council","http://opendatacommunities.org/id/metropolitan-district-council/wolverhampton","706779","Re-Entry Project","8306","1,755.00","TPP - Alternative Provision of Education","130236858","20/02/2019","Inclusion Support","Alternative Provision","R5037"
"Wolverhampton City Council","http://opendatacommunities.org/id/metropolitan-district-council/wolverhampton","706779","Re-Entry Project","8307","1,755.00","TPP - Alternative Provision of Education","130236859","20/02/2019","Inclusion Support","Alternative Provision","R5037"
"Wolverhampton City Council","http://opendatacommunities.org/id/metropolitan-district-council/wolverhampton","706779","Re-Entry Project","8308","1,755.00","TPP - Alternative Provision of Education","130235938","20/02/2019","Inclusion Support","Alternative Provision","R5037"
"Wolverhampton City Council","http://opendatacommunities.org/id/metropolitan-district-council/wolverhampton","706779","Re-Entry Project","8310","1,755.00","TPP - Alternative Provision of Education","130236860","20/02/2019","Inclusion Support","Alternative Provision","R5037"
"Wolverhampton City Council","http://opendatacommunities.org/id/metropolitan-district-council/wolverhampton","706779","Re-Entry Project","8327","1,755.00","TPP - Alternative Provision of Education","130237168","20/02/2019","Inclusion Support","Alternative Provision","R5037"
"Wolverhampton City Council","http://opendatacommunities.org/id/metropolitan-district-council/wolverhampton","706779","Re-Entry Project","8511","1,755.00","TPP - Alternative Provision of Education","130243044","20/02/2019","Inclusion Support","Alternative Provision","R5037"
"Wolverhampton City Council","http://opendatacommunities.org/id/metropolitan-district-council/wolverhampton","706779","Re-Entry Project","8522","1,782.00","TPP - Alternative Provision of Education","130245515","27/02/2019","Inclusion Support","Pupil Premium","R5037"
"Wolverhampton City Council","http://opendatacommunities.org/id/metropolitan-district-council/wolverhampton","706779","Re-Entry Project","8524","1,170.00","TPP - Alternative Provision of Education","130244312","27/02/2019","Inclusion Support","Alternative Provision","R5037"
"Wolverhampton City Council","http://opendatacommunities.org/id/metropolitan-district-council/wolverhampton","706779","Re-Entry Project","8523","1,612.00","TPP - Alternative Provision of Education","130243842","27/02/2019","Inclusion Support","Alternative Provision","R5037"
"Wolverhampton City Council","http://opendatacommunities.org/id/metropolitan-district-council/wolverhampton","706779","Re-Entry Project","8528","585.00","TPP - Alternative Provision of Education","130244640","27/02/2019","Inclusion Support","Alternative Provision","R5037"
"Wolverhampton City Council","http://opendatacommunities.org/id/metropolitan-district-council/wolverhampton","706779","Re-Entry Project","8525","949.00","TPP - Alternative Provision of Education","130244489","27/02/2019","Inclusion Support","Alternative Provision","R5037"
"Wolverhampton City Council","http://opendatacommunities.org/id/metropolitan-district-council/wolverhampton","706820","Rexel UK Limited","437632788","4.22","R&M - Departmental planned (external)","130245205","22/02/2019","Schools","Uplands Junior School","R2001"
"Wolverhampton City Council","http://opendatacommunities.org/id/metropolitan-district-council/wolverhampton","706820","Rexel UK Limited","437632787","23.91","R&M - Departmental planned (external)","130245204","22/02/2019","Schools","Uplands Junior School","R2001"
"Wolverhampton City Council","http://opendatacommunities.org/id/metropolitan-district-council/wolverhampton","706849","Rics:Royal Inst.Chartered Surveyors","01325906FTI","235.00","Subscriptions","130243249","08/02/2019","Corporate Asset Management","Strategic Asset Management Team","R4701"
"Wolverhampton City Council","http://opendatacommunities.org/id/metropolitan-district-council/wolverhampton","706856","Rigby Taylor Limited","RSIN0286091","714.00","Equipment - Purchase","130242198","20/02/2019","Environmental Maintenance","Ground Maintenance East","R4000"
"Wolverhampton City Council","http://opendatacommunities.org/id/metropolitan-district-council/wolverhampton","706856","Rigby Taylor Limited","RSIN0285940","6,050.50","TPP - Maintenance on Principal Roads","130242021","20/02/2019","Environmental Maintenance","Ground Maintenance East","R5700"
"Wolverhampton City Council","http://opendatacommunities.org/id/metropolitan-district-council/wolverhampton","706861","Eurovia Contracting","5899","187,656.11","Construction and Conversion","130242920","27/02/2019","-","GF - Accessing Growth Fund","C1100"
"Wolverhampton City Council","http://opendatacommunities.org/id/metropolitan-district-council/wolverhampton","706866","Rlss UK Enterprises Limited","SI572845-1","663.32","Clothing / Uniforms","130241572","15/02/2019","Leisure Services","Bert Williams Leisure Centre","R4201"
"Wolverhampton City Council","http://opendatacommunities.org/id/metropolitan-district-council/wolverhampton","706866","Rlss UK Enterprises Limited","SI572845-1","16.67","Comms - Postage","130241572","15/02/2019","Leisure Services","Bert Williams Leisure Centre","R4503"
"Wolverhampton City Council","http://opendatacommunities.org/id/metropolitan-district-council/wolverhampton","706868","Rmc Mechanical Services Limited","A24440","2,128.68","R&M - Departmental planned (external)","130242349","15/02/2019","Maintenance Programme","Centralised R&M","R2001"
"Wolverhampton City Council","http://opendatacommunities.org/id/metropolitan-district-council/wolverhampton","706868","Rmc Mechanical Services Limited","A24319","3,055.95","R&M - Departmental planned (external)","130240280","15/02/2019","Maintenance Programme","Centralised R&M","R2001"
"Wolverhampton City Council","http://opendatacommunities.org/id/metropolitan-district-council/wolverhampton","706868","Rmc Mechanical Services Limited","A24332","4,398.99","R&M - Departmental planned (external)","130240534","15/02/2019","Maintenance Programme","Centralised R&M","R2001"
"Wolverhampton City Council","http://opendatacommunities.org/id/metropolitan-district-council/wolverhampton","706868","Rmc Mechanical Services Limited","A24325","437.70","R&M - Departmental planned (external)","130240407","06/02/2019","Maintenance Programme","Civic Centre Repairs & Maintenance","R2001"
"Wolverhampton City Council","http://opendatacommunities.org/id/metropolitan-district-council/wolverhampton","706868","Rmc Mechanical Services Limited","A24278","415.70","R&M - Departmental planned (external)","130240012","06/02/2019","Maintenance Programme","Centralised R&M","R2001"
"Wolverhampton City Council","http://opendatacommunities.org/id/metropolitan-district-council/wolverhampton","706868","Rmc Mechanical Services Limited","A24442","222.20","R&M - Departmental planned (external)","130242023","15/02/2019","Maintenance Programme","Centralised R&M","R2001"
"Wolverhampton City Council","http://opendatacommunities.org/id/metropolitan-district-council/wolverhampton","706868","Rmc Mechanical Services Limited","A24187","55.55","R&M - Departmental planned (external)","130239140","06/02/2019","Maintenance Programme","Centralised R&M","R2001"
"Wolverhampton City Council","http://opendatacommunities.org/id/metropolitan-district-council/wolverhampton","706868","Rmc Mechanical Services Limited","A24394","11.60","R&M - Departmental planned (external)","130241580","06/02/2019","Maintenance Programme","Centralised R&M","R2001"
"Wolverhampton City Council","http://opendatacommunities.org/id/metropolitan-district-council/wolverhampton","706868","Rmc Mechanical Services Limited","A24394","67.54","R&M - Departmental planned (external)","130241580","06/02/2019","Maintenance Programme","Centralised R&M","R2001"
"Wolverhampton City Council","http://opendatacommunities.org/id/metropolitan-district-council/wolverhampton","706868","Rmc Mechanical Services Limited","A24523","4.60","R&M - Departmental planned (external)","130243493","13/02/2019","Cleaning","Public Conveniences","R2001"
"Wolverhampton City Council","http://opendatacommunities.org/id/metropolitan-district-council/wolverhampton","706868","Rmc Mechanical Services Limited","A24523","168.00","R&M - Departmental planned (external)","130243493","13/02/2019","Cleaning","Public Conveniences","R2001"
"Wolverhampton City Council","http://opendatacommunities.org/id/metropolitan-district-council/wolverhampton","706868","Rmc Mechanical Services Limited","A24470","66.00","R&M - Departmental planned (external)","130242482","06/02/2019","Maintenance Programme","Centralised R&M","R2001"
"Wolverhampton City Council","http://opendatacommunities.org/id/metropolitan-district-council/wolverhampton","706868","Rmc Mechanical Services Limited","A24474","105.32","R&M - Departmental planned (external)","130242614","06/02/2019","Maintenance Programme","Centralised R&M","R2001"
"Wolverhampton City Council","http://opendatacommunities.org/id/metropolitan-district-council/wolverhampton","706868","Rmc Mechanical Services Limited","A24465","100.90","R&M - Departmental planned (external)","130242477","06/02/2019","Maintenance Programme","Centralised R&M","R2001"
"Wolverhampton City Council","http://opendatacommunities.org/id/metropolitan-district-council/wolverhampton","706868","Rmc Mechanical Services Limited","A24276","60.00","R&M - Departmental planned (external)","130239891","06/02/2019","Maintenance Programme","Centralised R&M","R2001"
"Wolverhampton City Council","http://opendatacommunities.org/id/metropolitan-district-council/wolverhampton","706868","Rmc Mechanical Services Limited","A24398","111.10","R&M - Departmental planned (external)","130241731","06/02/2019","Maintenance Programme","Centralised R&M","R2001"
"Wolverhampton City Council","http://opendatacommunities.org/id/metropolitan-district-council/wolverhampton","706868","Rmc Mechanical Services Limited","A24443","111.10","R&M - Departmental planned (external)","130242024","06/02/2019","Maintenance Programme","Centralised R&M","R2001"
"Wolverhampton City Council","http://opendatacommunities.org/id/metropolitan-district-council/wolverhampton","706868","Rmc Mechanical Services Limited","A24473A","111.10","R&M - Departmental planned (external)","130242792","06/02/2019","Facilities Management","Magistrates","R2001"
"Wolverhampton City Council","http://opendatacommunities.org/id/metropolitan-district-council/wolverhampton","706868","Rmc Mechanical Services Limited","A24318","107.48","R&M - Departmental planned (external)","130240279","06/02/2019","Maintenance Programme","Centralised R&M","R2001"
"Wolverhampton City Council","http://opendatacommunities.org/id/metropolitan-district-council/wolverhampton","706868","Rmc Mechanical Services Limited","A24456","7,368.40","Construction and Conversion","130242200","06/02/2019","-","Capital Maintenance - Heating Pipework Upgrades","C1100"
"Wolverhampton City Council","http://opendatacommunities.org/id/metropolitan-district-council/wolverhampton","706868","Rmc Mechanical Services Limited","A24466","1,284.00","R&M - Departmental planned (external)","130242478","06/02/2019","Maintenance Programme","Centralised R&M","R2001"
"Wolverhampton City Council","http://opendatacommunities.org/id/metropolitan-district-council/wolverhampton","706868","Rmc Mechanical Services Limited","A24441","876.22","R&M - Departmental planned (external)","130242199","06/02/2019","Maintenance Programme","Centralised R&M","R2001"
"Wolverhampton City Council","http://opendatacommunities.org/id/metropolitan-district-council/wolverhampton","706868","Rmc Mechanical Services Limited","A24475","1,624.34","R&M - Departmental planned (external)","130242615","06/02/2019","Maintenance Programme","Centralised R&M","R2001"
"Wolverhampton City Council","http://opendatacommunities.org/id/metropolitan-district-council/wolverhampton","706868","Rmc Mechanical Services Limited","A24386","25,000.00","Construction and Conversion","130241390","06/02/2019","-","Capital Maintenance - Heating Pipework Upgrades","C1100"
"Wolverhampton City Council","http://opendatacommunities.org/id/metropolitan-district-council/wolverhampton","706868","Rmc Mechanical Services Limited","A24472","32.00","R&M - Departmental planned (external)","130242484","06/02/2019","Maintenance Programme","Centralised R&M","R2001"
"Wolverhampton City Council","http://opendatacommunities.org/id/metropolitan-district-council/wolverhampton","706868","Rmc Mechanical Services Limited","A24339","149.67","R&M - Departmental planned (external)","130240739","06/02/2019","Maintenance Programme","Centralised R&M","R2001"
"Wolverhampton City Council","http://opendatacommunities.org/id/metropolitan-district-council/wolverhampton","706868","Rmc Mechanical Services Limited","A24464","577.80","R&M - Departmental planned (external)","130242476","06/02/2019","Maintenance Programme","Centralised R&M","R2001"
"Wolverhampton City Council","http://opendatacommunities.org/id/metropolitan-district-council/wolverhampton","706868","Rmc Mechanical Services Limited","A24468","171.10","R&M - Departmental planned (external)","130242480","06/02/2019","Maintenance Programme","Centralised R&M","R2001"
"Wolverhampton City Council","http://opendatacommunities.org/id/metropolitan-district-council/wolverhampton","706868","Rmc Mechanical Services Limited","A24471","183.55","R&M - Departmental planned (external)","130242483","06/02/2019","Maintenance Programme","Centralised R&M","R2001"
"Wolverhampton City Council","http://opendatacommunities.org/id/metropolitan-district-council/wolverhampton","706868","Rmc Mechanical Services Limited","A24444","5,700.00","R&M - Departmental planned (external)","130242025","08/02/2019","Maintenance Programme","Civic Centre Repairs & Maintenance","R2001"
"Wolverhampton City Council","http://opendatacommunities.org/id/metropolitan-district-council/wolverhampton","706868","Rmc Mechanical Services Limited","A24617","12,184.50","R&M - Departmental planned (external)","130244805","27/02/2019","Maintenance Programme","Centralised R&M","R2001"
"Wolverhampton City Council","http://opendatacommunities.org/id/metropolitan-district-council/wolverhampton","706868","Rmc Mechanical Services Limited","A24467","448.16","R&M - Departmental planned (external)","130242479","06/02/2019","Maintenance Programme","Centralised R&M","R2001"
"Wolverhampton City Council","http://opendatacommunities.org/id/metropolitan-district-council/wolverhampton","706868","Rmc Mechanical Services Limited","A24469","192.00","R&M - Departmental planned (external)","130242481","06/02/2019","Maintenance Programme","Centralised R&M","R2001"
"Wolverhampton City Council","http://opendatacommunities.org/id/metropolitan-district-council/wolverhampton","706868","Rmc Mechanical Services Limited","A24473","128.00","R&M - Departmental planned (external)","130242485","06/02/2019","Maintenance Programme","Centralised R&M","R2001"
"Wolverhampton City Council","http://opendatacommunities.org/id/metropolitan-district-council/wolverhampton","706868","Rmc Mechanical Services Limited","A24509","160.28","R&M - Departmental planned (external)","130243254","27/02/2019","Maintenance Programme","Centralised R&M","R2001"
"Wolverhampton City Council","http://opendatacommunities.org/id/metropolitan-district-council/wolverhampton","706868","Rmc Mechanical Services Limited","A24507","180.99","R&M - Departmental planned (external)","130243252","27/02/2019","Maintenance Programme","Centralised R&M","R2001"
"Wolverhampton City Council","http://opendatacommunities.org/id/metropolitan-district-council/wolverhampton","706868","Rmc Mechanical Services Limited","A24545","83.33","R&M - Departmental planned (external)","130243846","27/02/2019","Markets","Wholesale Market Facilities Management","R2001"
"Wolverhampton City Council","http://opendatacommunities.org/id/metropolitan-district-council/wolverhampton","706868","Rmc Mechanical Services Limited","A24620","119.55","R&M - Departmental planned (external)","130244808","27/02/2019","Maintenance Programme","Centralised R&M","R2001"
"Wolverhampton City Council","http://opendatacommunities.org/id/metropolitan-district-council/wolverhampton","706868","Rmc Mechanical Services Limited","A24622","1,941.99","R&M - Departmental planned (external)","130244810","27/02/2019","Maintenance Programme","Centralised R&M","R2001"
"Wolverhampton City Council","http://opendatacommunities.org/id/metropolitan-district-council/wolverhampton","706868","Rmc Mechanical Services Limited","A24508","290.75","R&M - Departmental planned (external)","130243253","27/02/2019","Maintenance Programme","Centralised R&M","R2001"
"Wolverhampton City Council","http://opendatacommunities.org/id/metropolitan-district-council/wolverhampton","706868","Rmc Mechanical Services Limited","A24504","255.22","R&M - Departmental planned (external)","130243048","20/02/2019","Maintenance Programme","Centralised R&M","R2001"
"Wolverhampton City Council","http://opendatacommunities.org/id/metropolitan-district-council/wolverhampton","706868","Rmc Mechanical Services Limited","A24535","302.17","R&M - Departmental planned (external)","130243498","20/02/2019","Markets","Wolverhampton Indoor and Open Market","R2001"
"Wolverhampton City Council","http://opendatacommunities.org/id/metropolitan-district-council/wolverhampton","706868","Rmc Mechanical Services Limited","A24544","238.95","R&M - Departmental planned (external)","130243845","20/02/2019","Markets","Wholesale Market Facilities Management","R2001"
"Wolverhampton City Council","http://opendatacommunities.org/id/metropolitan-district-council/wolverhampton","706868","Rmc Mechanical Services Limited","A24534","2,166.48","R&M - Departmental planned (external)","130243497","20/02/2019","Maintenance Programme","Centralised R&M","R2001"
"Wolverhampton City Council","http://opendatacommunities.org/id/metropolitan-district-council/wolverhampton","706868","Rmc Mechanical Services Limited","A24197","111.10","R&M - Departmental planned (external)","130238661","20/02/2019","Maintenance Programme","Centralised R&M","R2001"
"Wolverhampton City Council","http://opendatacommunities.org/id/metropolitan-district-council/wolverhampton","706868","Rmc Mechanical Services Limited","A24536","111.10","R&M - Departmental planned (external)","130243499","20/02/2019","Maintenance Programme","Centralised R&M","R2001"
"Wolverhampton City Council","http://opendatacommunities.org/id/metropolitan-district-council/wolverhampton","706868","Rmc Mechanical Services Limited","A24546","938.59","R&M - Departmental planned (external)","130243657","20/02/2019","Markets","Wholesale Market Facilities Management","R2001"
"Wolverhampton City Council","http://opendatacommunities.org/id/metropolitan-district-council/wolverhampton","706868","Rmc Mechanical Services Limited","A24505","709.05","R&M - Departmental planned (external)","130243250","22/02/2019","Maintenance Programme","Centralised R&M","R2001"
"Wolverhampton City Council","http://opendatacommunities.org/id/metropolitan-district-council/wolverhampton","706868","Rmc Mechanical Services Limited","A24506","1,054.63","R&M - Departmental planned (external)","130243251","22/02/2019","Maintenance Programme","Centralised R&M","R2001"
"Wolverhampton City Council","http://opendatacommunities.org/id/metropolitan-district-council/wolverhampton","706868","Rmc Mechanical Services Limited","A24554","55.55","R&M - Departmental planned (external)","130244227","22/02/2019","Bereavement Services","Crematorium","R2001"
"Wolverhampton City Council","http://opendatacommunities.org/id/metropolitan-district-council/wolverhampton","706868","Rmc Mechanical Services Limited","A24106","111.10","R&M - Departmental planned (external)","130237499","01/02/2019","Maintenance Programme","Centralised R&M","R2001"
"Wolverhampton City Council","http://opendatacommunities.org/id/metropolitan-district-council/wolverhampton","706868","Rmc Mechanical Services Limited","A24311","55.55","R&M - Departmental planned (external)","130241152","01/02/2019","Maintenance Programme","Centralised R&M","R2001"
"Wolverhampton City Council","http://opendatacommunities.org/id/metropolitan-district-council/wolverhampton","706868","Rmc Mechanical Services Limited","A24272","672.53","R&M - Departmental planned (external)","130239754","01/02/2019","Maintenance Programme","Centralised R&M","R2001"
"Wolverhampton City Council","http://opendatacommunities.org/id/metropolitan-district-council/wolverhampton","706868","Rmc Mechanical Services Limited","A24399","111.10","R&M - Departmental planned (external)","130241732","01/02/2019","Maintenance Programme","Centralised R&M","R2001"
"Wolverhampton City Council","http://opendatacommunities.org/id/metropolitan-district-council/wolverhampton","706868","Rmc Mechanical Services Limited","A24273","131.81","R&M - Departmental planned (external)","130239755","01/02/2019","Maintenance Programme","Centralised R&M","R2001"
"Wolverhampton City Council","http://opendatacommunities.org/id/metropolitan-district-council/wolverhampton","706868","Rmc Mechanical Services Limited","A24271","141.80","R&M - Departmental planned (external)","130239753","01/02/2019","Maintenance Programme","Centralised R&M","R2001"
"Wolverhampton City Council","http://opendatacommunities.org/id/metropolitan-district-council/wolverhampton","706868","Rmc Mechanical Services Limited","A24518","999.90","R&M - Departmental planned (external)","130243262","22/02/2019","Maintenance Programme","Centralised R&M","R2001"
"Wolverhampton City Council","http://opendatacommunities.org/id/metropolitan-district-council/wolverhampton","706902","Rompa Limited","120982","763.95","Equipment - Purchase","130242921","27/02/2019","Special Educational Needs","SEN Early Years Team","R4000"
"Wolverhampton City Council","http://opendatacommunities.org/id/metropolitan-district-council/wolverhampton","706936","Royal Mail Group PLC","9058120880","2,623.21","Comms - Postage","130242201","20/02/2019","ICTS","Document Centre - General","R4503"
"Wolverhampton City Council","http://opendatacommunities.org/id/metropolitan-district-council/wolverhampton","706936","Royal Mail Group PLC","9058140537","342.70","Comms - Postage","190563514","20/02/2019","Public Service Reform","Electoral Registration","R4503"
"Wolverhampton City Council","http://opendatacommunities.org/id/metropolitan-district-council/wolverhampton","706936","Royal Mail Group PLC","9058041572","1,723.13","Comms - Postage","130240414","06/02/2019","ICTS","Document Centre - General","R4503"
"Wolverhampton City Council","http://opendatacommunities.org/id/metropolitan-district-council/wolverhampton","706936","Royal Mail Group PLC","9058152788","2,727.40","Comms - Postage","130242405","27/02/2019","ICTS","Document Centre - General","R4503"
"Wolverhampton City Council","http://opendatacommunities.org/id/metropolitan-district-council/wolverhampton","706936","Royal Mail Group PLC","9058138194","0.73","Comms - Postage","130242406","22/02/2019","Revenues & Benefits","Benefits","R4503"
"Wolverhampton City Council","http://opendatacommunities.org/id/metropolitan-district-council/wolverhampton","706943","Royal Wolverhampton  Hospitals NHS Trust","0000224884","141.00","TPP - Nursing Care - Long Term","130242038","20/02/2019","Older People Care Purchasing","OP Care Purchasing (Spot Placements)","R5410"
"Wolverhampton City Council","http://opendatacommunities.org/id/metropolitan-district-council/wolverhampton","706943","Royal Wolverhampton  Hospitals NHS Trust","0000224886","998.00","TPP - Nursing Care - Long Term","130242027","20/02/2019","Adults Assessment & Care Management East","Hospital Team","R5410"
"Wolverhampton City Council","http://opendatacommunities.org/id/metropolitan-district-council/wolverhampton","706943","Royal Wolverhampton  Hospitals NHS Trust","0000224887","4,873.00","TPP - Nursing Care - Long Term","130242028","20/02/2019","Older People Care Purchasing","OP Care Purchasing (Spot Placements)","R5410"
"Wolverhampton City Council","http://opendatacommunities.org/id/metropolitan-district-council/wolverhampton","706943","Royal Wolverhampton  Hospitals NHS Trust","0000224885","1,021.00","TPP - Nursing Care - Long Term","130242026","20/02/2019","Older People Care Purchasing","OP Care Purchasing (Spot Placements)","R5410"
"Wolverhampton City Council","http://opendatacommunities.org/id/metropolitan-district-council/wolverhampton","706943","Royal Wolverhampton  Hospitals NHS Trust","0000225399","2,517.17","TPP - Payments to Local Authorities","130242930","27/02/2019","Adults Assessment & Care Management East","Hospital Team","R5100"
"Wolverhampton City Council","http://opendatacommunities.org/id/metropolitan-district-council/wolverhampton","706943","Royal Wolverhampton  Hospitals NHS Trust","0000225400","3,882.92","TPP - Payments to Local Authorities","130242931","27/02/2019","Adults Assessment & Care Management East","Hospital Team","R5100"
"Wolverhampton City Council","http://opendatacommunities.org/id/metropolitan-district-council/wolverhampton","706943","Royal Wolverhampton  Hospitals NHS Trust","0000225419","450,000.00","TPP - Public Health Contracts","130242932","27/02/2019","Starting and Developing Well","Health Visiting 0-5 Year Olds","R5060"
"Wolverhampton City Council","http://opendatacommunities.org/id/metropolitan-district-council/wolverhampton","706943","Royal Wolverhampton  Hospitals NHS Trust","0000225349","18,184.00","TPP - Public Health Contracts","130242928","27/02/2019","Healthy Ageing","LA Role in Health Protection","R5060"
"Wolverhampton City Council","http://opendatacommunities.org/id/metropolitan-district-council/wolverhampton","706943","Royal Wolverhampton  Hospitals NHS Trust","0000225420","39,635.58","TPP - Payments to Health Authorities","130242933","27/02/2019","Independent Living Service","Independent Living Service","R5101"
"Wolverhampton City Council","http://opendatacommunities.org/id/metropolitan-district-council/wolverhampton","706943","Royal Wolverhampton  Hospitals NHS Trust","0000225374","173,660.00","TPP - Public Health Contracts","130242929","27/02/2019","Starting and Developing Well","Sexual Health","R5060"
"Wolverhampton City Council","http://opendatacommunities.org/id/metropolitan-district-council/wolverhampton","706943","Royal Wolverhampton  Hospitals NHS Trust","0000225169","50,000.00","TPP - Public Health Contracts","130242486","27/02/2019","Healthy Ageing","LA Role in Health Protection","R5060"
"Wolverhampton City Council","http://opendatacommunities.org/id/metropolitan-district-council/wolverhampton","706969","Ruth Turnbull","758","300.00","Services - Professional Fees","130245321","27/02/2019","Visitor Economy","Education And Access","R4400"
"Wolverhampton City Council","http://opendatacommunities.org/id/metropolitan-district-council/wolverhampton","706969","Ruth Turnbull","757","300.00","Services - Professional Fees","130245320","27/02/2019","Visitor Economy","Early Years -  ACE NPO WAG","R4400"
"Wolverhampton City Council","http://opendatacommunities.org/id/metropolitan-district-council/wolverhampton","706987","S B Waste Management & Recycling Limited","119973","14,721.67","TPP - Waste Disposal","130242794","27/02/2019","Waste and Recycling Service","Waste Collection and Recycling Service - General","R5003"
"Wolverhampton City Council","http://opendatacommunities.org/id/metropolitan-district-council/wolverhampton","706987","S B Waste Management & Recycling Limited","119976","575.00","TPP - Waste Disposal","130242797","27/02/2019","Waste and Recycling Service","Waste Collection and Recycling Service - General","R5003"
"Wolverhampton City Council","http://opendatacommunities.org/id/metropolitan-district-council/wolverhampton","706987","S B Waste Management & Recycling Limited","119979","2,038.23","TPP - Waste Disposal","130242800","27/02/2019","Waste and Recycling Service","Waste Collection and Recycling Service - General","R5003"
"Wolverhampton City Council","http://opendatacommunities.org/id/metropolitan-district-council/wolverhampton","706987","S B Waste Management & Recycling Limited","119978","1,740.70","TPP - Waste Disposal","130242799","27/02/2019","Waste and Recycling Service","Waste Collection and Recycling Service - General","R5003"
"Wolverhampton City Council","http://opendatacommunities.org/id/metropolitan-district-council/wolverhampton","706987","S B Waste Management & Recycling Limited","119974","828.02","TPP - Waste Disposal","130242795","27/02/2019","Highways Maintenance","Patching","R5003"
"Wolverhampton City Council","http://opendatacommunities.org/id/metropolitan-district-council/wolverhampton","706987","S B Waste Management & Recycling Limited","119972","47.38","TPP - Waste Disposal","130242793","27/02/2019","Environmental Maintenance","Direct Schools","R5003"
"Wolverhampton City Council","http://opendatacommunities.org/id/metropolitan-district-council/wolverhampton","706987","S B Waste Management & Recycling Limited","119977","587.60","TPP - Waste Disposal","130242798","27/02/2019","Independent Living Service","Independent Living Service","R5003"
"Wolverhampton City Council","http://opendatacommunities.org/id/metropolitan-district-council/wolverhampton","707023","S. & J. Pritchard Landscapes Limited","19/027","235.00","R&M - Departmental response (external)","130243658","15/02/2019","Environmental Maintenance","Parks - South West Area Management","R2003"
"Wolverhampton City Council","http://opendatacommunities.org/id/metropolitan-district-council/wolverhampton","707023","S. & J. Pritchard Landscapes Limited","19/026","145.00","R&M - Departmental response (external)","130243502","13/02/2019","Environmental Maintenance","Parks - East Area Management","R2003"
"Wolverhampton City Council","http://opendatacommunities.org/id/metropolitan-district-council/wolverhampton","707023","S. & J. Pritchard Landscapes Limited","19/015","125.00","R&M - Departmental response (external)","130242030","01/02/2019","Environmental Maintenance","Parks - East Area Management","R2003"
"Wolverhampton City Council","http://opendatacommunities.org/id/metropolitan-district-council/wolverhampton","707023","S. & J. Pritchard Landscapes Limited","19/014","285.00","R&M - Departmental response (external)","130242029","01/02/2019","Environmental Maintenance","Parks - East Area Management","R2003"
"Wolverhampton City Council","http://opendatacommunities.org/id/metropolitan-district-council/wolverhampton","707023","S. & J. Pritchard Landscapes Limited","19/024","1,405.00","R&M - Departmental response (external)","130243050","13/02/2019","Environmental Maintenance","Parks - South West Area Management","R2003"
"Wolverhampton City Council","http://opendatacommunities.org/id/metropolitan-district-council/wolverhampton","707023","S. & J. Pritchard Landscapes Limited","19/018","975.00","R&M - Departmental response (external)","130242801","08/02/2019","Environmental Maintenance","Parks - East Area Management","R2003"
"Wolverhampton City Council","http://opendatacommunities.org/id/metropolitan-district-council/wolverhampton","707023","S. & J. Pritchard Landscapes Limited","19/020","125.00","R&M - Departmental response (external)","130242803","08/02/2019","Environmental Maintenance","Parks - East Area Management","R2003"
"Wolverhampton City Council","http://opendatacommunities.org/id/metropolitan-district-council/wolverhampton","707023","S. & J. Pritchard Landscapes Limited","19/021","75.00","R&M - Departmental response (external)","130242804","08/02/2019","Environmental Maintenance","Parks - East Area Management","R2003"
"Wolverhampton City Council","http://opendatacommunities.org/id/metropolitan-district-council/wolverhampton","707023","S. & J. Pritchard Landscapes Limited","19/019","85.00","R&M - Departmental response (external)","130242802","08/02/2019","Environmental Maintenance","Parks - South West Area Management","R2003"
"Wolverhampton City Council","http://opendatacommunities.org/id/metropolitan-district-council/wolverhampton","707023","S. & J. Pritchard Landscapes Limited","19/025","85.00","R&M - Departmental response (external)","130243501","13/02/2019","Environmental Maintenance","Parks - South West Area Management","R2003"
"Wolverhampton City Council","http://opendatacommunities.org/id/metropolitan-district-council/wolverhampton","707023","S. & J. Pritchard Landscapes Limited","19/016","765.00","R&M - Departmental response (external)","130242202","06/02/2019","Environmental Maintenance","Parks - East Area Management","R2003"
"Wolverhampton City Council","http://opendatacommunities.org/id/metropolitan-district-council/wolverhampton","707023","S. & J. Pritchard Landscapes Limited","19/028","80.00","R&M - Departmental response (external)","130244852","27/02/2019","Environmental Maintenance","Parks - East Area Management","R2003"
"Wolverhampton City Council","http://opendatacommunities.org/id/metropolitan-district-council/wolverhampton","707023","S. & J. Pritchard Landscapes Limited","19/030","260.00","R&M - Departmental response (external)","130244854","27/02/2019","Environmental Maintenance","Parks - South West Area Management","R2003"
"Wolverhampton City Council","http://opendatacommunities.org/id/metropolitan-district-council/wolverhampton","707023","S. & J. Pritchard Landscapes Limited","19/031","325.00","R&M - Departmental response (external)","130244855","27/02/2019","Environmental Maintenance","Parks - East Area Management","R2003"
"Wolverhampton City Council","http://opendatacommunities.org/id/metropolitan-district-council/wolverhampton","707023","S. & J. Pritchard Landscapes Limited","19/029","105.00","R&M - Departmental response (external)","130244853","27/02/2019","Environmental Maintenance","Parks - East Area Management","R2003"
"Wolverhampton City Council","http://opendatacommunities.org/id/metropolitan-district-council/wolverhampton","707023","S. & J. Pritchard Landscapes Limited","19/023","590.00","Equipment - Purchase","130243049","13/02/2019","Environmental Maintenance","Management & Administration","R4000"
"Wolverhampton City Council","http://opendatacommunities.org/id/metropolitan-district-council/wolverhampton","707033","S.P. Chrimes","23071 - returned cheque","40.00","Equipment - R & M","130245839","28/02/2019","Central Corporate Budgets","Miscellaneous Corporate Costs","R4003"
"Wolverhampton City Council","http://opendatacommunities.org/id/metropolitan-district-council/wolverhampton","707035","S.S. Sidhu","0503","187.69","Books","130242352","20/02/2019","Local Economy","Reference Library","R4309"
"Wolverhampton City Council","http://opendatacommunities.org/id/metropolitan-district-council/wolverhampton","707035","S.S. Sidhu","0501","167.45","Books","130242350","06/02/2019","Local Economy","Reference Library","R4309"
"Wolverhampton City Council","http://opendatacommunities.org/id/metropolitan-district-council/wolverhampton","707035","S.S. Sidhu","0502","168.51","Books","130242351","13/02/2019","Local Economy","Reference Library","R4309"
"Wolverhampton City Council","http://opendatacommunities.org/id/metropolitan-district-council/wolverhampton","707069","Compasss Minerals UK Ltd","476892","2,232.04","Materials","130244648","20/02/2019","Highways Maintenance","Winter Maintenance","R4007"
"Wolverhampton City Council","http://opendatacommunities.org/id/metropolitan-district-council/wolverhampton","707069","Compasss Minerals UK Ltd","477437","5,343.65","Materials","130244649","22/02/2019","Highways Maintenance","Winter Maintenance","R4007"
"Wolverhampton City Council","http://opendatacommunities.org/id/metropolitan-district-council/wolverhampton","707069","Compasss Minerals UK Ltd","476642","3,207.11","Materials","130243263","08/02/2019","Highways Maintenance","Winter Maintenance","R4007"
"Wolverhampton City Council","http://opendatacommunities.org/id/metropolitan-district-council/wolverhampton","707069","Compasss Minerals UK Ltd","476764","4,390.92","Materials","130243264","13/02/2019","Highways Maintenance","Winter Maintenance","R4007"
"Wolverhampton City Council","http://opendatacommunities.org/id/metropolitan-district-council/wolverhampton","707069","Compasss Minerals UK Ltd","477340","4,347.78","Materials","130245060","27/02/2019","Highways Maintenance","Winter Maintenance","R4007"
"Wolverhampton City Council","http://opendatacommunities.org/id/metropolitan-district-council/wolverhampton","707069","Compasss Minerals UK Ltd","477621","1,114.48","Materials","130244811","22/02/2019","Highways Maintenance","Winter Maintenance","R4007"
"Wolverhampton City Council","http://opendatacommunities.org/id/metropolitan-district-council/wolverhampton","707085","Sandwell Mbc","105003402","29,684.00","Services - Professional Fees","130241283","13/02/2019","Strategic Finance","Strategic Finance","R4400"
"Wolverhampton City Council","http://opendatacommunities.org/id/metropolitan-district-council/wolverhampton","707086","Sandwell Mbc(Sandwell Business Syst)","108000263","28,125.00","Services - Professional Fees","130240744","08/02/2019","Audit Services","Audit Services","R4400"
"Wolverhampton City Council","http://opendatacommunities.org/id/metropolitan-district-council/wolverhampton","707086","Sandwell Mbc(Sandwell Business Syst)","120010747","35,023.39","Services - Professional Fees","130241284","06/02/2019","Public Service Reform","Coroners Service","R4400"
"Wolverhampton City Council","http://opendatacommunities.org/id/metropolitan-district-council/wolverhampton","707086","Sandwell Mbc(Sandwell Business Syst)","900079643","-2,235.00","TPP - Payments to Local Authorities","130238469","06/02/2019","Public Service Reform","Coroners Service","R5100"
"Wolverhampton City Council","http://opendatacommunities.org/id/metropolitan-district-council/wolverhampton","707088","Sandwich","3008","80.00","Provisions (Not for resale)","130240745","13/02/2019","Inclusion Support","Inclusion Support","R4101"
"Wolverhampton City Council","http://opendatacommunities.org/id/metropolitan-district-council/wolverhampton","707088","Sandwich","3001","125.00","Equipment - Purchase","130240536","08/02/2019","Headstart","Headstart - Young People Engagement","R4000"
"Wolverhampton City Council","http://opendatacommunities.org/id/metropolitan-district-council/wolverhampton","707121","Schneider Electric Limited","98588053","398.50","R&M - Departmental planned (internal)","130242616","22/02/2019","Maintenance Programme","Civic Centre Repairs & Maintenance","R2000"
"Wolverhampton City Council","http://opendatacommunities.org/id/metropolitan-district-council/wolverhampton","707121","Schneider Electric Limited","98508848","1,403.50","R&M - Departmental planned (internal)","130243504","20/02/2019","Maintenance Programme","Civic Centre Repairs & Maintenance","R2000"
"Wolverhampton City Council","http://opendatacommunities.org/id/metropolitan-district-council/wolverhampton","707121","Schneider Electric Limited","98457860","1,412.50","R&M - Departmental planned (internal)","130243503","20/02/2019","Maintenance Programme","Civic Centre Repairs & Maintenance","R2000"
"Wolverhampton City Council","http://opendatacommunities.org/id/metropolitan-district-council/wolverhampton","707121","Schneider Electric Limited","98508848","9.00","R&M - Departmental planned (internal)","130243504","20/02/2019","Maintenance Programme","Civic Centre Repairs & Maintenance","R2000"
"Wolverhampton City Council","http://opendatacommunities.org/id/metropolitan-district-council/wolverhampton","707121","Schneider Electric Limited","98546861","1,412.50","R&M - Departmental planned (internal)","130243505","20/02/2019","Maintenance Programme","Civic Centre Repairs & Maintenance","R2000"
"Wolverhampton City Council","http://opendatacommunities.org/id/metropolitan-district-council/wolverhampton","707121","Schneider Electric Limited","98602410","1,412.50","R&M - Departmental planned (internal)","130243506","27/02/2019","Maintenance Programme","Civic Centre Repairs & Maintenance","R2000"
"Wolverhampton City Council","http://opendatacommunities.org/id/metropolitan-district-council/wolverhampton","707121","Schneider Electric Limited","98588086","1,360.00","R&M - Departmental planned (internal)","130242617","22/02/2019","Maintenance Programme","Civic Centre Repairs & Maintenance","R2000"
"Wolverhampton City Council","http://opendatacommunities.org/id/metropolitan-district-council/wolverhampton","707164","Scribes Plus Limited","10087","58.20","Books","130240746","08/02/2019","Bereavement Services","Crematorium","R4309"
"Wolverhampton City Council","http://opendatacommunities.org/id/metropolitan-district-council/wolverhampton","707164","Scribes Plus Limited","10095","375.00","Materials","130242031","20/02/2019","Bereavement Services","Crematorium","R4007"
"Wolverhampton City Council","http://opendatacommunities.org/id/metropolitan-district-council/wolverhampton","707164","Scribes Plus Limited","10090","477.00","Materials","130241391","15/02/2019","Bereavement Services","Crematorium","R4007"
"Wolverhampton City Council","http://opendatacommunities.org/id/metropolitan-district-council/wolverhampton","707185","Security Plus Limited","707194","58.44","Services - Security","130240538","13/02/2019","Housing Revenue Account","HRA General","R4405"
"Wolverhampton City Council","http://opendatacommunities.org/id/metropolitan-district-council/wolverhampton","707185","Security Plus Limited","717625","62.54","Services - Security","130243267","20/02/2019","The Hub","Cash in Transit (Operational Finance)","R4405"
"Wolverhampton City Council","http://opendatacommunities.org/id/metropolitan-district-council/wolverhampton","707185","Security Plus Limited","717479","136.36","Services - Security","130241742","01/02/2019","Housing Revenue Account","HRA General","R4405"
"Wolverhampton City Council","http://opendatacommunities.org/id/metropolitan-district-council/wolverhampton","707185","Security Plus Limited","707197","29.22","Services - Security","130240541","01/02/2019","Leisure Services","Aldersley Leisure Village","R4405"
"Wolverhampton City Council","http://opendatacommunities.org/id/metropolitan-district-council/wolverhampton","707185","Security Plus Limited","717478","9.74","Services - Security","130241741","01/02/2019","Visitor Economy","The Little Civic","R4405"
"Wolverhampton City Council","http://opendatacommunities.org/id/metropolitan-district-council/wolverhampton","707185","Security Plus Limited","717481","9.74","Services - Security","130241744","01/02/2019","Leisure Services","Bert Williams Leisure Centre","R4405"
"Wolverhampton City Council","http://opendatacommunities.org/id/metropolitan-district-council/wolverhampton","707185","Security Plus Limited","717480","48.70","Services - Security","130241743","01/02/2019","Housing Revenue Account","HRA General","R4405"
"Wolverhampton City Council","http://opendatacommunities.org/id/metropolitan-district-council/wolverhampton","707185","Security Plus Limited","717482","9.74","Services - Security","130241745","01/02/2019","Leisure Services","Aldersley Leisure Village","R4405"
"Wolverhampton City Council","http://opendatacommunities.org/id/metropolitan-district-council/wolverhampton","707185","Security Plus Limited","721577","48.70","Services - Security","130244075","27/02/2019","Housing Revenue Account","HRA General","R4405"
"Wolverhampton City Council","http://opendatacommunities.org/id/metropolitan-district-council/wolverhampton","707185","Security Plus Limited","720749","3,056.56","Services - Security","130242805","27/02/2019","The Hub","Cash in Transit (Operational Finance)","R4405"
"Wolverhampton City Council","http://opendatacommunities.org/id/metropolitan-district-council/wolverhampton","707185","Security Plus Limited","722907","217.04","Services - Security","130244080","27/02/2019","Parking Services","On Street Parking","R4405"
"Wolverhampton City Council","http://opendatacommunities.org/id/metropolitan-district-council/wolverhampton","707185","Security Plus Limited","722907","651.12","Services - Security","130244080","27/02/2019","Parking Services","Car Parks Operational Staff","R4405"
"Wolverhampton City Council","http://opendatacommunities.org/id/metropolitan-district-council/wolverhampton","707185","Security Plus Limited","721582","130.00","Services - Security","130244079","27/02/2019","Housing Revenue Account","HRA General","R4405"
"Wolverhampton City Council","http://opendatacommunities.org/id/metropolitan-district-council/wolverhampton","707185","Security Plus Limited","720750","1,575.14","Services - Security","130242806","27/02/2019","The Hub","Cash in Transit (Operational Finance)","R4405"
"Wolverhampton City Council","http://opendatacommunities.org/id/metropolitan-district-council/wolverhampton","707185","Security Plus Limited","720750","0.17","Services - Security","130242806","27/02/2019","The Hub","Cash in Transit (Operational Finance)","R4405"
"Wolverhampton City Council","http://opendatacommunities.org/id/metropolitan-district-council/wolverhampton","707185","Security Plus Limited","720750","9.74","Services - Security","130242806","27/02/2019","The Hub","Cash in Transit (Operational Finance)","R4405"
"Wolverhampton City Council","http://opendatacommunities.org/id/metropolitan-district-council/wolverhampton","707185","Security Plus Limited","720750","0.05","Services - Security","130242806","27/02/2019","The Hub","Cash in Transit (Operational Finance)","R4405"
"Wolverhampton City Council","http://opendatacommunities.org/id/metropolitan-district-council/wolverhampton","707185","Security Plus Limited","720751","2,091.68","Services - Security","130242807","27/02/2019","Parking Services","On Street Parking","R4405"
"Wolverhampton City Council","http://opendatacommunities.org/id/metropolitan-district-council/wolverhampton","707185","Security Plus Limited","720751","3,076.00","Services - Security","130242807","27/02/2019","Parking Services","Car Parks Operational Staff","R4405"
"Wolverhampton City Council","http://opendatacommunities.org/id/metropolitan-district-council/wolverhampton","707185","Security Plus Limited","707193","9.74","Services - Security","130241163","15/02/2019","Leisure Services","Bert Williams Leisure Centre","R4405"
"Wolverhampton City Council","http://opendatacommunities.org/id/metropolitan-district-council/wolverhampton","707185","Security Plus Limited","721576","13.12","Services - Security","130244074","27/02/2019","Visitor Economy","The Little Civic","R4405"
"Wolverhampton City Council","http://opendatacommunities.org/id/metropolitan-district-council/wolverhampton","707185","Security Plus Limited","721580","19.48","Services - Security","130244077","27/02/2019","Leisure Services","Bert Williams Leisure Centre","R4405"
"Wolverhampton City Council","http://opendatacommunities.org/id/metropolitan-district-council/wolverhampton","707185","Security Plus Limited","721579","19.48","Services - Security","130244076","27/02/2019","Visitor Economy","Bantock - Tea Rooms","R4405"
"Wolverhampton City Council","http://opendatacommunities.org/id/metropolitan-district-council/wolverhampton","707185","Security Plus Limited","720752","20.00","Services - Security","130242808","27/02/2019","The Hub","Banking","R4405"
"Wolverhampton City Council","http://opendatacommunities.org/id/metropolitan-district-council/wolverhampton","707185","Security Plus Limited","19462","-48.40","Services - Security","130243265","13/02/2019","The Hub","Cash in Transit (Operational Finance)","R4405"
"Wolverhampton City Council","http://opendatacommunities.org/id/metropolitan-district-council/wolverhampton","707185","Security Plus Limited","703840","20.00","Services - Security","130243266","20/02/2019","The Hub","Banking","R4405"
"Wolverhampton City Council","http://opendatacommunities.org/id/metropolitan-district-council/wolverhampton","707195","Select & Save Wolverhampton Limited","WANEWS058","100.48","Books","130244650","20/02/2019","Local Economy","Warstones Library","R4309"
"Wolverhampton City Council","http://opendatacommunities.org/id/metropolitan-district-council/wolverhampton","707196","Select Alarm Systems Limited","90121","105.00","Services - Security","130243889","15/02/2019","Maintenance Programme","Centralised R&M","R4405"
"Wolverhampton City Council","http://opendatacommunities.org/id/metropolitan-district-council/wolverhampton","707196","Select Alarm Systems Limited","89461","153.00","Fixtures and Fittings - R&M","130243851","15/02/2019","Maintenance Programme","Centralised R&M","R2502"
"Wolverhampton City Council","http://opendatacommunities.org/id/metropolitan-district-council/wolverhampton","707196","Select Alarm Systems Limited","89429","273.00","Fixtures and Fittings - R&M","130243849","15/02/2019","Maintenance Programme","Centralised R&M","R2502"
"Wolverhampton City Council","http://opendatacommunities.org/id/metropolitan-district-council/wolverhampton","707196","Select Alarm Systems Limited","90127","165.00","Services - Security","130243890","15/02/2019","Maintenance Programme","Centralised R&M","R4405"
"Wolverhampton City Council","http://opendatacommunities.org/id/metropolitan-district-council/wolverhampton","707196","Select Alarm Systems Limited","90378","105.00","Services - Security","130243897","15/02/2019","Maintenance Programme","Centralised R&M","R4405"
"Wolverhampton City Council","http://opendatacommunities.org/id/metropolitan-district-council/wolverhampton","707196","Select Alarm Systems Limited","90377","101.00","Fixtures and Fittings - R&M","130243896","15/02/2019","Maintenance Programme","Centralised R&M","R2502"
"Wolverhampton City Council","http://opendatacommunities.org/id/metropolitan-district-council/wolverhampton","707196","Select Alarm Systems Limited","90379","105.00","Services - Security","130243898","15/02/2019","Maintenance Programme","Centralised R&M","R4405"
"Wolverhampton City Council","http://opendatacommunities.org/id/metropolitan-district-council/wolverhampton","707196","Select Alarm Systems Limited","89938","1,090.00","Fixtures and Fittings - R&M","130244659","20/02/2019","Maintenance Programme","Centralised R&M","R2502"
"Wolverhampton City Council","http://opendatacommunities.org/id/metropolitan-district-council/wolverhampton","707196","Select Alarm Systems Limited","89469","103.00","Fixtures and Fittings - R&M","130244491","20/02/2019","Maintenance Programme","Centralised R&M","R2502"
"Wolverhampton City Council","http://opendatacommunities.org/id/metropolitan-district-council/wolverhampton","707196","Select Alarm Systems Limited","90218","150.00","Services - Security","130243895","15/02/2019","Maintenance Programme","Centralised R&M","R4405"
"Wolverhampton City Council","http://opendatacommunities.org/id/metropolitan-district-council/wolverhampton","707196","Select Alarm Systems Limited","89719","900.00","Fixtures and Fittings - R&M","130243854","13/02/2019","Adult Education","Foyer Building","R2502"
"Wolverhampton City Council","http://opendatacommunities.org/id/metropolitan-district-council/wolverhampton","707196","Select Alarm Systems Limited","90143","180.00","Services - Security","130243891","15/02/2019","Maintenance Programme","Centralised R&M","R4405"
"Wolverhampton City Council","http://opendatacommunities.org/id/metropolitan-district-council/wolverhampton","707196","Select Alarm Systems Limited","90194","320.00","Fixtures and Fittings - R&M","130243893","15/02/2019","Maintenance Programme","Centralised R&M","R2502"
"Wolverhampton City Council","http://opendatacommunities.org/id/metropolitan-district-council/wolverhampton","707196","Select Alarm Systems Limited","90164","340.00","Fixtures and Fittings - R&M","130243892","15/02/2019","Maintenance Programme","Centralised R&M","R2502"
"Wolverhampton City Council","http://opendatacommunities.org/id/metropolitan-district-council/wolverhampton","707196","Select Alarm Systems Limited","90200","410.00","Fixtures and Fittings - R&M","130243894","15/02/2019","Maintenance Programme","Centralised R&M","R2502"
"Wolverhampton City Council","http://opendatacommunities.org/id/metropolitan-district-council/wolverhampton","707196","Select Alarm Systems Limited","90380","250.00","Fixtures and Fittings - R&M","130243899","27/02/2019","Maintenance Programme","Centralised R&M","R2502"
"Wolverhampton City Council","http://opendatacommunities.org/id/metropolitan-district-council/wolverhampton","707196","Select Alarm Systems Limited","89431","353.00","Fixtures and Fittings - R&M","130244652","20/02/2019","Maintenance Programme","Centralised R&M","R2502"
"Wolverhampton City Council","http://opendatacommunities.org/id/metropolitan-district-council/wolverhampton","707196","Select Alarm Systems Limited","89430","453.00","Fixtures and Fittings - R&M","130244651","20/02/2019","Maintenance Programme","Centralised R&M","R2502"
"Wolverhampton City Council","http://opendatacommunities.org/id/metropolitan-district-council/wolverhampton","707196","Select Alarm Systems Limited","90115","255.00","Services - Security","130243887","27/02/2019","Maintenance Programme","Centralised R&M","R4405"
"Wolverhampton City Council","http://opendatacommunities.org/id/metropolitan-district-council/wolverhampton","707196","Select Alarm Systems Limited","90153","195.00","Fixtures and Fittings - R&M","130244670","27/02/2019","Learning Disability Provider","Ernest Bold Court","R2502"
"Wolverhampton City Council","http://opendatacommunities.org/id/metropolitan-district-council/wolverhampton","707196","Select Alarm Systems Limited","90097","130.00","Services - Security","130243885","27/02/2019","Maintenance Programme","Centralised R&M","R4405"
"Wolverhampton City Council","http://opendatacommunities.org/id/metropolitan-district-council/wolverhampton","707196","Select Alarm Systems Limited","90085","95.00","Fixtures and Fittings - R&M","130243883","27/02/2019","Maintenance Programme","Centralised R&M","R2502"
"Wolverhampton City Council","http://opendatacommunities.org/id/metropolitan-district-council/wolverhampton","707196","Select Alarm Systems Limited","90094","95.00","Fixtures and Fittings - R&M","130243884","27/02/2019","Maintenance Programme","Centralised R&M","R2502"
"Wolverhampton City Council","http://opendatacommunities.org/id/metropolitan-district-council/wolverhampton","707196","Select Alarm Systems Limited","90099","105.00","Services - Security","130243886","27/02/2019","Maintenance Programme","Centralised R&M","R4405"
"Wolverhampton City Council","http://opendatacommunities.org/id/metropolitan-district-council/wolverhampton","707196","Select Alarm Systems Limited","90119","105.00","Services - Security","130243888","27/02/2019","Maintenance Programme","Centralised R&M","R4405"
"Wolverhampton City Council","http://opendatacommunities.org/id/metropolitan-district-council/wolverhampton","707213","Sellick Partnership Group Limited","INV258705","611.42","Agency Staff","130242618","08/02/2019","Legal Services","Legal Services","R1100"
"Wolverhampton City Council","http://opendatacommunities.org/id/metropolitan-district-council/wolverhampton","707213","Sellick Partnership Group Limited","INV259303","858.04","Agency Staff","130243052","13/02/2019","Legal Services","Legal Services","R1100"
"Wolverhampton City Council","http://opendatacommunities.org/id/metropolitan-district-council/wolverhampton","707213","Sellick Partnership Group Limited","INV255857","616.00","Agency Staff","130240020","01/02/2019","Legal Services","Legal Services","R1100"
"Wolverhampton City Council","http://opendatacommunities.org/id/metropolitan-district-council/wolverhampton","707213","Sellick Partnership Group Limited","INV256382","1,694.00","Agency Staff","130240749","01/02/2019","Legal Services","Legal Services","R1100"
"Wolverhampton City Council","http://opendatacommunities.org/id/metropolitan-district-council/wolverhampton","707213","Sellick Partnership Group Limited","INV258095","979.00","Agency Staff","130242203","06/02/2019","Legal Services","Legal Services","R1100"
"Wolverhampton City Council","http://opendatacommunities.org/id/metropolitan-district-council/wolverhampton","707213","Sellick Partnership Group Limited","INV255689","1,089.00","Agency Staff","130239893","01/02/2019","Legal Services","Legal Services","R1100"
"Wolverhampton City Council","http://opendatacommunities.org/id/metropolitan-district-council/wolverhampton","707213","Sellick Partnership Group Limited","INV155541","978.50","Agency Staff","130117892","22/02/2019","Legal Services","Legal Services","R1100"
"Wolverhampton City Council","http://opendatacommunities.org/id/metropolitan-district-council/wolverhampton","707249","Severn Valley Window & Door Limited","24892","280.00","R&M - Departmental planned (external)","130243268","13/02/2019","Maintenance Programme","Civic Centre Repairs & Maintenance","R2001"
"Wolverhampton City Council","http://opendatacommunities.org/id/metropolitan-district-council/wolverhampton","707249","Severn Valley Window & Door Limited","24797","88,878.74","Construction and Conversion","130238471","06/02/2019","-","Capital Maintenance - Window Upgrade","C1100"
"Wolverhampton City Council","http://opendatacommunities.org/id/metropolitan-district-council/wolverhampton","707249","Severn Valley Window & Door Limited","24886","297.92","R&M - Departmental planned (external)","130242619","06/02/2019","Maintenance Programme","Civic Centre Repairs & Maintenance","R2001"
"Wolverhampton City Council","http://opendatacommunities.org/id/metropolitan-district-council/wolverhampton","707272","Shaw Park Management Limited","006/04","1,000.00","Service Charges","130244684","20/02/2019","Headstart","Headstart Phase 3","R2205"
"Wolverhampton City Council","http://opendatacommunities.org/id/metropolitan-district-council/wolverhampton","707288","Shine Fostering","P198228 03031920190211","3,600.00","TPP - Placement Foster Care Agency","190560723","13/02/2019","Children & Young People In Care","Out of City Placements","R5602"
"Wolverhampton City Council","http://opendatacommunities.org/id/metropolitan-district-council/wolverhampton","707295","Shropshire Coffee Limited","151268","187.75","Equipment - Purchase","130240543","01/02/2019","Leisure Services","WV Active Catering - Central","R4000"
"Wolverhampton City Council","http://opendatacommunities.org/id/metropolitan-district-council/wolverhampton","707296","Shropshire Council","HHA001519","7,651.60","Client Transport - SEN","130241897","20/02/2019","Special Educational Needs","Special - Transport","R3043"
"Wolverhampton City Council","http://opendatacommunities.org/id/metropolitan-district-council/wolverhampton","707296","Shropshire Council","SEN001206","46.00","Services - Consultants","130242353","20/02/2019","Learning Disability Provider","Support Plus","R4404"
"Wolverhampton City Council","http://opendatacommunities.org/id/metropolitan-district-council/wolverhampton","707296","Shropshire Council","SEN001184","49,300.00","TPP - Payments to Local Authorities","130240544","01/02/2019","Strategic Commissioning","Commissioning Disabilities","R5100"
"Wolverhampton City Council","http://opendatacommunities.org/id/metropolitan-district-council/wolverhampton","707296","Shropshire Council","SEN001207","46.00","Services - Professional Fees","130242204","20/02/2019","Learning Disability Provider","City Links","R4400"
"Wolverhampton City Council","http://opendatacommunities.org/id/metropolitan-district-council/wolverhampton","707303","Sico Europe Limited","INV0125625","87.00","Equipment - R & M","130242205","01/02/2019","Catering","Education Catering - General Overheads","R4003"
"Wolverhampton City Council","http://opendatacommunities.org/id/metropolitan-district-council/wolverhampton","707303","Sico Europe Limited","INV0125725","87.00","Equipment - R & M","130242922","06/02/2019","Catering","Education Catering - General Overheads","R4003"
"Wolverhampton City Council","http://opendatacommunities.org/id/metropolitan-district-council/wolverhampton","707303","Sico Europe Limited","INV0125761","59.50","Equipment - Purchase","130243507","08/02/2019","Catering","Education Catering - General Overheads","R4000"
"Wolverhampton City Council","http://opendatacommunities.org/id/metropolitan-district-council/wolverhampton","707303","Sico Europe Limited","INV0125761","9.50","Equipment - Purchase","130243507","08/02/2019","Catering","Education Catering - General Overheads","R4000"
"Wolverhampton City Council","http://opendatacommunities.org/id/metropolitan-district-council/wolverhampton","707303","Sico Europe Limited","INV0122792","6,011.37","Equipment - Catering","130242620","06/02/2019","Catering","Education Catering - General Overheads","R4010"
"Wolverhampton City Council","http://opendatacommunities.org/id/metropolitan-district-council/wolverhampton","707313","Signature","SI00202445","42.66","Exam Expenses (Non-Employee)","130243508","08/02/2019","Adult Education","Communication Studies","R4630"
"Wolverhampton City Council","http://opendatacommunities.org/id/metropolitan-district-council/wolverhampton","707313","Signature","SI00202445","11.34","Exam Expenses (Non-Employee)","130243508","08/02/2019","Adult Education","Discretionary Fund","R4630"
"Wolverhampton City Council","http://opendatacommunities.org/id/metropolitan-district-council/wolverhampton","707313","Signature","SI00202446","42.66","Exam Expenses (Non-Employee)","130243660","13/02/2019","Adult Education","Communication Studies","R4630"
"Wolverhampton City Council","http://opendatacommunities.org/id/metropolitan-district-council/wolverhampton","707313","Signature","SI00202446","11.34","Exam Expenses (Non-Employee)","130243660","13/02/2019","Adult Education","Discretionary Fund","R4630"
"Wolverhampton City Council","http://opendatacommunities.org/id/metropolitan-district-council/wolverhampton","707349","SUEZ Recycling & Recovery (Sita UK)","80132747","514.80","TPP - Waste Disposal","130244493","27/02/2019","Highways Maintenance","Gully Sweeping","R5003"
"Wolverhampton City Council","http://opendatacommunities.org/id/metropolitan-district-council/wolverhampton","707349","SUEZ Recycling & Recovery (Sita UK)","80132747","12,740.00","TPP - Waste Disposal","130244493","27/02/2019","Environmental Maintenance","Ground Maintenance East","R5003"
"Wolverhampton City Council","http://opendatacommunities.org/id/metropolitan-district-council/wolverhampton","707354","Orbis Protect Ltd","B0883595M","450.00","Services - Professional Fees","130236040","06/02/2019","Public Protection","Regulatory Services - Works in Default","R4400"
"Wolverhampton City Council","http://opendatacommunities.org/id/metropolitan-district-council/wolverhampton","707356","SJ Cleaning (Midlands) Limited","WCC1819/10","2,727.75","Window Cleaning","130242923","13/02/2019","Facilities Management","Civic Centre","R2701"
"Wolverhampton City Council","http://opendatacommunities.org/id/metropolitan-district-council/wolverhampton","707356","SJ Cleaning (Midlands) Limited","WCC1819/11","4,099.85","Window Cleaning","130242924","15/02/2019","Facilities Management","Civic Centre","R2701"
"Wolverhampton City Council","http://opendatacommunities.org/id/metropolitan-district-council/wolverhampton","707374","Smart Metering Systems","0000040759","921.80","Construction and Conversion","130241005","06/02/2019","-","Primary Expansion Programme","C1100"
"Wolverhampton City Council","http://opendatacommunities.org/id/metropolitan-district-council/wolverhampton","707388","Smith Bros(Caer Conan)Wholesale Limited","592986","625.60","Materials","130241898","06/02/2019","Street Lighting","Street Lighting Maintenance","R4007"
"Wolverhampton City Council","http://opendatacommunities.org/id/metropolitan-district-council/wolverhampton","707388","Smith Bros(Caer Conan)Wholesale Limited","592986","122.00","Materials","130241898","06/02/2019","Street Lighting","Street Lighting Maintenance","R4007"
"Wolverhampton City Council","http://opendatacommunities.org/id/metropolitan-district-council/wolverhampton","707414","Solace Enterprises Limited","EVENT-00704","900.00","Training Expenses","130242354","06/02/2019","Public Service Reform","Centralised Training","R1650"
"Wolverhampton City Council","http://opendatacommunities.org/id/metropolitan-district-council/wolverhampton","707433","South Staffordshire District Council","74197","60.00","Room Hire","130244319","20/02/2019","Strengthening Families","CP Area 7 - Low Hill","R2201"
"Wolverhampton City Council","http://opendatacommunities.org/id/metropolitan-district-council/wolverhampton","707441","Southern Electric PLC","711657101-0031","76.00","Gas","190559644","08/02/2019","Estates and Valuations","Industrial Premises ; Fordhouse Road","R2101"
"Wolverhampton City Council","http://opendatacommunities.org/id/metropolitan-district-council/wolverhampton","707465","Specialist Crafts Limited","SINHO00414589","38.79","Equipment - Purchase","130244084","15/02/2019","Adult Education","Continuing Education","R4000"
"Wolverhampton City Council","http://opendatacommunities.org/id/metropolitan-district-council/wolverhampton","707465","Specialist Crafts Limited","SINHO00414589","5.99","Equipment - Purchase","130244084","15/02/2019","Adult Education","Continuing Education","R4000"
"Wolverhampton City Council","http://opendatacommunities.org/id/metropolitan-district-council/wolverhampton","707465","Specialist Crafts Limited","SINHO00411947","117.18","Equipment - Purchase","130243053","08/02/2019","Adult Education","Advance Learner Loan","R4000"
"Wolverhampton City Council","http://opendatacommunities.org/id/metropolitan-district-council/wolverhampton","707465","Specialist Crafts Limited","SINHO00403029","58.85","Equipment - Purchase","130239895","01/02/2019","Adult Education","Continuing Education","R4000"
"Wolverhampton City Council","http://opendatacommunities.org/id/metropolitan-district-council/wolverhampton","707465","Specialist Crafts Limited","SINHO00411544","13.09","Equipment - Purchase","130242925","08/02/2019","Adult Education","Discretionary Fund","R4000"
"Wolverhampton City Council","http://opendatacommunities.org/id/metropolitan-district-council/wolverhampton","707465","Specialist Crafts Limited","SINHO00403257","9.08","Equipment - Purchase","130239897","06/02/2019","Adult Education","Continuing Education","R4000"
"Wolverhampton City Council","http://opendatacommunities.org/id/metropolitan-district-council/wolverhampton","707474","Speedy Asset Services Limited","7113007082","276.00","Hire of Plant","130244093","15/02/2019","Highways Maintenance","Patching","R3201"
"Wolverhampton City Council","http://opendatacommunities.org/id/metropolitan-district-council/wolverhampton","707474","Speedy Asset Services Limited","7112930640","22.52","Hire of Plant","130241006","06/02/2019","Highways Maintenance","Patching","R3201"
"Wolverhampton City Council","http://opendatacommunities.org/id/metropolitan-district-council/wolverhampton","707474","Speedy Asset Services Limited","7113006617","118.96","Hire of Plant","130243270","15/02/2019","Highways Maintenance","Patching","R3201"
"Wolverhampton City Council","http://opendatacommunities.org/id/metropolitan-district-council/wolverhampton","707474","Speedy Asset Services Limited","7113006570","126.50","Hire of Plant","130243269","15/02/2019","Highways Maintenance","Patching","R3201"
"Wolverhampton City Council","http://opendatacommunities.org/id/metropolitan-district-council/wolverhampton","707474","Speedy Asset Services Limited","7113005692","56.99","Hire of Plant","130244086","15/02/2019","Highways Maintenance","Patching","R3201"
"Wolverhampton City Council","http://opendatacommunities.org/id/metropolitan-district-council/wolverhampton","707474","Speedy Asset Services Limited","7113007710","269.10","Hire of Plant","130244094","20/02/2019","Highways Maintenance","Patching","R3201"
"Wolverhampton City Council","http://opendatacommunities.org/id/metropolitan-district-council/wolverhampton","707474","Speedy Asset Services Limited","7113007942","56.99","Hire of Plant","130244097","20/02/2019","Highways Maintenance","Patching","R3201"
"Wolverhampton City Council","http://opendatacommunities.org/id/metropolitan-district-council/wolverhampton","707474","Speedy Asset Services Limited","7113006412","55.20","Hire of Plant","130244090","20/02/2019","Highways Maintenance","Patching","R3201"
"Wolverhampton City Council","http://opendatacommunities.org/id/metropolitan-district-council/wolverhampton","707474","Speedy Asset Services Limited","7113008020","55.20","Hire of Plant","130244098","20/02/2019","Highways Maintenance","Patching","R3201"
"Wolverhampton City Council","http://opendatacommunities.org/id/metropolitan-district-council/wolverhampton","707474","Speedy Asset Services Limited","7113007721","92.00","Hire of Plant","130244095","20/02/2019","Highways Maintenance","Patching","R3201"
"Wolverhampton City Council","http://opendatacommunities.org/id/metropolitan-district-council/wolverhampton","707474","Speedy Asset Services Limited","7113006227","56.95","Hire of Plant","130244089","20/02/2019","Highways Maintenance","Patching","R3201"
"Wolverhampton City Council","http://opendatacommunities.org/id/metropolitan-district-council/wolverhampton","707474","Speedy Asset Services Limited","7113006063","56.95","Hire of Plant","130244087","20/02/2019","Highways Maintenance","Patching","R3201"
"Wolverhampton City Council","http://opendatacommunities.org/id/metropolitan-district-council/wolverhampton","707474","Speedy Asset Services Limited","7113008090","79.97","Hire of Plant","130244099","20/02/2019","Highways Maintenance","Patching","R3201"
"Wolverhampton City Council","http://opendatacommunities.org/id/metropolitan-district-council/wolverhampton","707474","Speedy Asset Services Limited","7113006091","119.60","Hire of Plant","130244088","20/02/2019","Highways Maintenance","Patching","R3201"
"Wolverhampton City Council","http://opendatacommunities.org/id/metropolitan-district-council/wolverhampton","707474","Speedy Asset Services Limited","7113007725","92.00","Hire of Plant","130244096","20/02/2019","Highways Maintenance","Patching","R3201"
"Wolverhampton City Council","http://opendatacommunities.org/id/metropolitan-district-council/wolverhampton","707474","Speedy Asset Services Limited","7113006726","118.96","Hire of Plant","130244091","20/02/2019","Highways Maintenance","Patching","R3201"
"Wolverhampton City Council","http://opendatacommunities.org/id/metropolitan-district-council/wolverhampton","707474","Speedy Asset Services Limited","7113008206","112.15","Hire of Plant","130244100","20/02/2019","Highways Maintenance","Patching","R3201"
"Wolverhampton City Council","http://opendatacommunities.org/id/metropolitan-district-council/wolverhampton","707474","Speedy Asset Services Limited","7112898227","100.00","Equipment - Hire","130239578","13/02/2019","Visitor Economy","ALV - Darts & Comedy","R4001"
"Wolverhampton City Council","http://opendatacommunities.org/id/metropolitan-district-council/wolverhampton","707516","St Georges Charity","SGHDV006","1,250.00","TPP - Social Care Support Services","130242355","22/02/2019","Strategic Commissioning","Head of Strategic Commissioning","R5501"
"Wolverhampton City Council","http://opendatacommunities.org/id/metropolitan-district-council/wolverhampton","707516","St Georges Charity","SGHDV007","1,250.00","TPP - Social Care Support Services","130242356","22/02/2019","Strategic Commissioning","Head of Strategic Commissioning","R5501"
"Wolverhampton City Council","http://opendatacommunities.org/id/metropolitan-district-council/wolverhampton","707517","St George�S Veterinary Group","WCC2019_01","1,003.79","Services - Professional Fees","130244813","20/02/2019","Public Protection","Pest Control & Animal Welfare","R4400"
"Wolverhampton City Council","http://opendatacommunities.org/id/metropolitan-district-council/wolverhampton","707517","St George�S Veterinary Group","WCC2018_12","810.00","Services - Professional Fees","130245066","22/02/2019","Public Protection","Pest Control & Animal Welfare","R4400"
"Wolverhampton City Council","http://opendatacommunities.org/id/metropolitan-district-council/wolverhampton","707519","St Ives Chambers","INVAN43","262.50","Services - Professional Fees","130242206","08/02/2019","Legal Services","Centralised External Legal Costs","R4400"
"Wolverhampton City Council","http://opendatacommunities.org/id/metropolitan-district-council/wolverhampton","707564","Staffordshire County Council","1000025519","23,900.59","Construction and Conversion","130242032","20/02/2019","-","i54 Access and Infrastructure","C1100"
"Wolverhampton City Council","http://opendatacommunities.org/id/metropolitan-district-council/wolverhampton","707564","Staffordshire County Council","1000025094","2,928.25","TPP - Payments to Local Authorities","130243662","13/02/2019","Special Educational Needs","SEN Education OOC","R5100"
"Wolverhampton City Council","http://opendatacommunities.org/id/metropolitan-district-council/wolverhampton","707564","Staffordshire County Council","1000025589","2,522.88","Client Transport - SEN","130243663","22/02/2019","Special Educational Needs","Special - Transport","R3043"
"Wolverhampton City Council","http://opendatacommunities.org/id/metropolitan-district-council/wolverhampton","707564","Staffordshire County Council","1000025591","6,529.76","Client Transport - SEN","130243665","22/02/2019","Special Educational Needs","Special - Transport","R3043"
"Wolverhampton City Council","http://opendatacommunities.org/id/metropolitan-district-council/wolverhampton","707564","Staffordshire County Council","1000025593","4,725.00","Client Transport - SEN","130243666","22/02/2019","Special Educational Needs","Special - Transport","R3043"
"Wolverhampton City Council","http://opendatacommunities.org/id/metropolitan-district-council/wolverhampton","707564","Staffordshire County Council","1000025594","5,439.00","Client Transport - SEN","130243667","22/02/2019","Special Educational Needs","Special - Transport","R3043"
"Wolverhampton City Council","http://opendatacommunities.org/id/metropolitan-district-council/wolverhampton","707564","Staffordshire County Council","1000025590","1,476.30","Client Transport - SEN","130243664","22/02/2019","Special Educational Needs","Special - Transport","R3043"
"Wolverhampton City Council","http://opendatacommunities.org/id/metropolitan-district-council/wolverhampton","707564","Staffordshire County Council","1000016882","3,055.50","Client Transport - SEN","130245067","27/02/2019","Special Educational Needs","Special - Transport","R3043"
"Wolverhampton City Council","http://opendatacommunities.org/id/metropolitan-district-council/wolverhampton","707564","Staffordshire County Council","1000025159","85.00","Services - Professional Fees","130242621","15/02/2019","Highways Maintenance","Winter Maintenance","R4400"
"Wolverhampton City Council","http://opendatacommunities.org/id/metropolitan-district-council/wolverhampton","707572","Stage Audio Services Limited","4253","470.00","Services - Professional Fees","130243271","13/02/2019","Visitor Economy","The Little Civic","R4400"
"Wolverhampton City Council","http://opendatacommunities.org/id/metropolitan-district-council/wolverhampton","707575","Stage Wolves Limited","5778","240.00","Services - Professional Fees","130244101","13/02/2019","Visitor Economy","Outdoor Events Admin","R4400"
"Wolverhampton City Council","http://opendatacommunities.org/id/metropolitan-district-council/wolverhampton","707580","Stannah Lifts Limited","18/0115/SAG","5,933.00","Grants paid out to other organisations","190563598","20/02/2019","-","Disabled Facilities Grants","C5011"
"Wolverhampton City Council","http://opendatacommunities.org/id/metropolitan-district-council/wolverhampton","707580","Stannah Lifts Limited","18/0105/SAG","2,495.00","Grants paid out to other organisations","190563600","20/02/2019","-","Disabled Facilities Grants","C5011"
"Wolverhampton City Council","http://opendatacommunities.org/id/metropolitan-district-council/wolverhampton","707580","Stannah Lifts Limited","18/0071/SAG","2,728.00","Grants paid out to other organisations","190562003","15/02/2019","-","Disabled Facilities Grants","C5011"
"Wolverhampton City Council","http://opendatacommunities.org/id/metropolitan-district-council/wolverhampton","707580","Stannah Lifts Limited","18/0304/SAG","1,525.00","Grants paid out to other organisations","190559684","08/02/2019","-","Disabled Facilities Grants","C5011"
"Wolverhampton City Council","http://opendatacommunities.org/id/metropolitan-district-council/wolverhampton","707580","Stannah Lifts Limited","18/0301/SAG","5,343.00","Grants paid out to other organisations","190558620","06/02/2019","-","Disabled Facilities Grants","C5011"
"Wolverhampton City Council","http://opendatacommunities.org/id/metropolitan-district-council/wolverhampton","707580","Stannah Lifts Limited","18/0302/SAG","5,301.00","Grants paid out to other organisations","190556901","01/02/2019","-","Disabled Facilities Grants","C5011"
"Wolverhampton City Council","http://opendatacommunities.org/id/metropolitan-district-council/wolverhampton","707580","Stannah Lifts Limited","18/0177/SAG","5,158.00","Grants paid out to other organisations","190556904","01/02/2019","-","Disabled Facilities Grants","C5011"
"Wolverhampton City Council","http://opendatacommunities.org/id/metropolitan-district-council/wolverhampton","707580","Stannah Lifts Limited","18/0381/SAG","2,893.00","Grants paid out to other organisations","190565701","22/02/2019","-","Disabled Facilities Grants","C5011"
"Wolverhampton City Council","http://opendatacommunities.org/id/metropolitan-district-council/wolverhampton","707581","Stannah Limited/Stannah Lift Services","18/0658/SAG","4,841.00","Grants paid out to other organisations","190558615","06/02/2019","-","Disabled Facilities Grants","C5011"
"Wolverhampton City Council","http://opendatacommunities.org/id/metropolitan-district-council/wolverhampton","707581","Stannah Limited/Stannah Lift Services","18/0558/SAG","4,763.00","Grants paid out to other organisations","190558617","06/02/2019","-","Disabled Facilities Grants","C5011"
"Wolverhampton City Council","http://opendatacommunities.org/id/metropolitan-district-council/wolverhampton","707581","Stannah Limited/Stannah Lift Services","18/0694/SAG","3,061.00","Grants paid out to other organisations","190558611","06/02/2019","-","Disabled Facilities Grants","C5011"
"Wolverhampton City Council","http://opendatacommunities.org/id/metropolitan-district-council/wolverhampton","707581","Stannah Limited/Stannah Lift Services","18/0598/SAG","2,957.00","Grants paid out to other organisations","190558619","06/02/2019","-","Disabled Facilities Grants","C5011"
"Wolverhampton City Council","http://opendatacommunities.org/id/metropolitan-district-council/wolverhampton","707581","Stannah Limited/Stannah Lift Services","18/0799/SLM","90.27","Grants paid out to other organisations","190559686","08/02/2019","-","Disabled Facilities Grants","C5011"
"Wolverhampton City Council","http://opendatacommunities.org/id/metropolitan-district-council/wolverhampton","707581","Stannah Limited/Stannah Lift Services","18/0692/SAG","4,890.00","Grants paid out to other organisations","190563597","20/02/2019","-","Disabled Facilities Grants","C5011"
"Wolverhampton City Council","http://opendatacommunities.org/id/metropolitan-district-council/wolverhampton","707581","Stannah Limited/Stannah Lift Services","18/0715/SAG","4,763.00","Grants paid out to other organisations","190563599","20/02/2019","-","Disabled Facilities Grants","C5011"
"Wolverhampton City Council","http://opendatacommunities.org/id/metropolitan-district-council/wolverhampton","707581","Stannah Limited/Stannah Lift Services","18/0631/SAG","2,663.00","Grants paid out to other organisations","190563596","20/02/2019","-","Disabled Facilities Grants","C5011"
"Wolverhampton City Council","http://opendatacommunities.org/id/metropolitan-district-council/wolverhampton","707581","Stannah Limited/Stannah Lift Services","18/0684/SAG","2,663.00","Grants paid out to other organisations","190558614","06/02/2019","-","Disabled Facilities Grants","C5011"
"Wolverhampton City Council","http://opendatacommunities.org/id/metropolitan-district-council/wolverhampton","707581","Stannah Limited/Stannah Lift Services","18/0652/SAG","2,846.00","Grants paid out to other organisations","190558613","06/02/2019","-","Disabled Facilities Grants","C5011"
"Wolverhampton City Council","http://opendatacommunities.org/id/metropolitan-district-council/wolverhampton","707581","Stannah Limited/Stannah Lift Services","18/0591/SAG","3,023.00","Grants paid out to other organisations","190556903","01/02/2019","-","Disabled Facilities Grants","C5011"
"Wolverhampton City Council","http://opendatacommunities.org/id/metropolitan-district-council/wolverhampton","707581","Stannah Limited/Stannah Lift Services","18/0630/SAG","5,024.00","Grants paid out to other organisations","190561487","13/02/2019","-","Disabled Facilities Grants","C5011"
"Wolverhampton City Council","http://opendatacommunities.org/id/metropolitan-district-council/wolverhampton","707581","Stannah Limited/Stannah Lift Services","18/0565/SAG","2,752.00","Grants paid out to other organisations","190567438","27/02/2019","-","Disabled Facilities Grants","C5011"
"Wolverhampton City Council","http://opendatacommunities.org/id/metropolitan-district-council/wolverhampton","707581","Stannah Limited/Stannah Lift Services","18/0234/SAG","5,293.00","Grants paid out to other organisations","190556899","01/02/2019","-","Disabled Facilities Grants","C5011"
"Wolverhampton City Council","http://opendatacommunities.org/id/metropolitan-district-council/wolverhampton","707581","Stannah Limited/Stannah Lift Services","18/0562/SAG","5,703.00","Grants paid out to other organisations","190556900","01/02/2019","-","Disabled Facilities Grants","C5011"
"Wolverhampton City Council","http://opendatacommunities.org/id/metropolitan-district-council/wolverhampton","707597","Steertrak (UK) Limited","84670","95.00","Services - Professional Fees","190562053","15/02/2019","Fleet Services","Fleet Management","R4400"
"Wolverhampton City Council","http://opendatacommunities.org/id/metropolitan-district-council/wolverhampton","707627","Stoneleigh Consultancy Limited","47474","170.00","Computing - Purchase of Hardware","130243671","13/02/2019","ICTS","Strategic ICTS (ICT Service Budget)","R4530"
"Wolverhampton City Council","http://opendatacommunities.org/id/metropolitan-district-council/wolverhampton","707627","Stoneleigh Consultancy Limited","47486","2,441.10","Computing - Purchase of Hardware","130243673","13/02/2019","Specialist Support","Key To Inspiration","R4530"
"Wolverhampton City Council","http://opendatacommunities.org/id/metropolitan-district-council/wolverhampton","707627","Stoneleigh Consultancy Limited","47476","228.00","Computing - Purchase of Hardware","130243672","13/02/2019","ICTS","Strategic ICTS (ICT Service Budget)","R4530"
"Wolverhampton City Council","http://opendatacommunities.org/id/metropolitan-district-council/wolverhampton","707644","Streetmaster (South Wales)Limited","5957","510.00","Materials for resale","130241584","15/02/2019","Bereavement Services","Cemeteries","R4008"
"Wolverhampton City Council","http://opendatacommunities.org/id/metropolitan-district-council/wolverhampton","707653","Studio Music Company Limited","453878","14.20","Equipment - R & M","130202618","27/02/2019","School Planning & Resources","Music Support Team","R4003"
"Wolverhampton City Council","http://opendatacommunities.org/id/metropolitan-district-council/wolverhampton","707653","Studio Music Company Limited","453878","-14.20","Equipment - R & M","130202618","27/02/2019","School Planning & Resources","Music Support Team","R4003"
"Wolverhampton City Council","http://opendatacommunities.org/id/metropolitan-district-council/wolverhampton","707653","Studio Music Company Limited","453878","14.20","Equipment - R & M","130202618","27/02/2019","School Planning & Resources","Music Support Team","R4003"
"Wolverhampton City Council","http://opendatacommunities.org/id/metropolitan-district-council/wolverhampton","707657","Stulz UK Limited","19-9115","2,266.75","R&M - Departmental planned (internal)","130240753","06/02/2019","Maintenance Programme","Civic Centre Repairs & Maintenance","R2000"
"Wolverhampton City Council","http://opendatacommunities.org/id/metropolitan-district-council/wolverhampton","707682","Sunflowers Day Nursery Limited","67-17","92.00","TPP - Child Care provided for client","130219928","22/02/2019","Adult Education","Discretionary Fund","R5034"
"Wolverhampton City Council","http://opendatacommunities.org/id/metropolitan-district-council/wolverhampton","707685","Sunnyside Kennels","SSK005","1,213.50","Services - Professional Fees","130241009","08/02/2019","Public Protection","Pest Control & Animal Welfare","R4400"
"Wolverhampton City Council","http://opendatacommunities.org/id/metropolitan-district-council/wolverhampton","707685","Sunnyside Kennels","SSK005CN","-1,365.50","Services - Professional Fees","130242358","08/02/2019","Public Protection","Pest Control & Animal Welfare","R4400"
"Wolverhampton City Council","http://opendatacommunities.org/id/metropolitan-district-council/wolverhampton","707685","Sunnyside Kennels","SSK005CN","152.00","Services - Professional Fees","130242358","08/02/2019","Public Protection","Pest Control & Animal Welfare","R4400"
"Wolverhampton City Council","http://opendatacommunities.org/id/metropolitan-district-council/wolverhampton","707685","Sunnyside Kennels","SS008","1,700.83","Services - Professional Fees","130242357","08/02/2019","Public Protection","Pest Control & Animal Welfare","R4400"
"Wolverhampton City Council","http://opendatacommunities.org/id/metropolitan-district-council/wolverhampton","707686","Sunrise Medical Limited","19UI048484","795.00","Equipment - Purchase","130238167","08/02/2019","Older People Provider Services","ILS Stores","R4000"
"Wolverhampton City Council","http://opendatacommunities.org/id/metropolitan-district-council/wolverhampton","707686","Sunrise Medical Limited","19UI058611","420.00","Equipment - Purchase","130242034","20/02/2019","Older People Provider Services","ILS Stores","R4000"
"Wolverhampton City Council","http://opendatacommunities.org/id/metropolitan-district-council/wolverhampton","707686","Sunrise Medical Limited","19UI058611","400.00","Equipment - Purchase","130242034","20/02/2019","Older People Provider Services","ILS Stores","R4000"
"Wolverhampton City Council","http://opendatacommunities.org/id/metropolitan-district-council/wolverhampton","707686","Sunrise Medical Limited","19UI058611","385.00","Equipment - Purchase","130242034","20/02/2019","Older People Provider Services","ILS Stores","R4000"
"Wolverhampton City Council","http://opendatacommunities.org/id/metropolitan-district-council/wolverhampton","707686","Sunrise Medical Limited","19UI058907","200.00","Equipment - Purchase","130242207","20/02/2019","Older People Provider Services","ILS Stores","R4000"
"Wolverhampton City Council","http://opendatacommunities.org/id/metropolitan-district-council/wolverhampton","707686","Sunrise Medical Limited","19UI051760","400.00","Equipment - Purchase","130239587","06/02/2019","Older People Provider Services","ILS Stores","R4000"
"Wolverhampton City Council","http://opendatacommunities.org/id/metropolitan-district-council/wolverhampton","707722","Swift Maintnce Services (1973) Limited","29100","215.23","R&M - Departmental planned (external)","130242623","06/02/2019","Leisure Services","Bert Williams Leisure Centre Caf�","R2001"
"Wolverhampton City Council","http://opendatacommunities.org/id/metropolitan-district-council/wolverhampton","707722","Swift Maintnce Services (1973) Limited","29049","207.19","Equipment - R & M","130242489","06/02/2019","Leisure Services","Bert Williams Leisure Centre Caf�","R4003"
"Wolverhampton City Council","http://opendatacommunities.org/id/metropolitan-district-council/wolverhampton","707722","Swift Maintnce Services (1973) Limited","29041","209.41","R&M - Departmental planned (external)","130242487","06/02/2019","Leisure Services","WV Active Catering - Central","R2001"
"Wolverhampton City Council","http://opendatacommunities.org/id/metropolitan-district-council/wolverhampton","707722","Swift Maintnce Services (1973) Limited","28707","75.00","R&M - Departmental planned (internal)","130244688","27/02/2019","Maintenance Programme","Centralised R&M","R2000"
"Wolverhampton City Council","http://opendatacommunities.org/id/metropolitan-district-council/wolverhampton","707722","Swift Maintnce Services (1973) Limited","29090","750.00","Equipment - Purchase","130242622","06/02/2019","Learning Disability Provider","Learning Disabilities Management","R4000"
"Wolverhampton City Council","http://opendatacommunities.org/id/metropolitan-district-council/wolverhampton","707722","Swift Maintnce Services (1973) Limited","27772","75.50","R&M - Departmental planned (internal)","130241010","06/02/2019","Maintenance Programme","Centralised R&M","R2000"
"Wolverhampton City Council","http://opendatacommunities.org/id/metropolitan-district-council/wolverhampton","707722","Swift Maintnce Services (1973) Limited","28847","43.73","Equipment - R & M","130240548","06/02/2019","Older People Provider Services","ILS Stores","R4003"
"Wolverhampton City Council","http://opendatacommunities.org/id/metropolitan-district-council/wolverhampton","707722","Swift Maintnce Services (1973) Limited","29321","75.00","R&M - Departmental planned (internal)","130245328","27/02/2019","Facilities Management","Caretakers Community Centre","R2000"
"Wolverhampton City Council","http://opendatacommunities.org/id/metropolitan-district-council/wolverhampton","707722","Swift Maintnce Services (1973) Limited","29327","75.00","R&M - Departmental planned (internal)","130245329","27/02/2019","Maintenance Programme","Centralised R&M","R2000"
"Wolverhampton City Council","http://opendatacommunities.org/id/metropolitan-district-council/wolverhampton","707722","Swift Maintnce Services (1973) Limited","28706","75.00","R&M - Departmental planned (internal)","130244814","27/02/2019","Maintenance Programme","Centralised R&M","R2000"
"Wolverhampton City Council","http://opendatacommunities.org/id/metropolitan-district-council/wolverhampton","707722","Swift Maintnce Services (1973) Limited","28744","147.39","Equipment - Catering","130241011","27/02/2019","Leisure Services","WV Active Catering","R4010"
"Wolverhampton City Council","http://opendatacommunities.org/id/metropolitan-district-council/wolverhampton","707722","Swift Maintnce Services (1973) Limited","28775","25.63","Equipment - R & M","130240021","27/02/2019","Older People Provider Services","Bradley Lodge Resource Centre","R4003"
"Wolverhampton City Council","http://opendatacommunities.org/id/metropolitan-district-council/wolverhampton","707722","Swift Maintnce Services (1973) Limited","29053","75.50","Equipment - R & M","130242493","20/02/2019","Leisure Services","Bert Williams Leisure Centre Caf�","R4003"
"Wolverhampton City Council","http://opendatacommunities.org/id/metropolitan-district-council/wolverhampton","707722","Swift Maintnce Services (1973) Limited","29048","82.63","Equipment - R & M","130242488","20/02/2019","Leisure Services","WV Active Catering","R4003"
"Wolverhampton City Council","http://opendatacommunities.org/id/metropolitan-district-council/wolverhampton","707722","Swift Maintnce Services (1973) Limited","29051","75.50","Equipment - R & M","130242491","20/02/2019","Leisure Services","Bert Williams Leisure Centre Caf�","R4003"
"Wolverhampton City Council","http://opendatacommunities.org/id/metropolitan-district-council/wolverhampton","707722","Swift Maintnce Services (1973) Limited","29052","75.50","Equipment - R & M","130242492","20/02/2019","Leisure Services","Bert Williams Leisure Centre Caf�","R4003"
"Wolverhampton City Council","http://opendatacommunities.org/id/metropolitan-district-council/wolverhampton","707722","Swift Maintnce Services (1973) Limited","29215","410.42","Equipment - R & M","130243681","20/02/2019","Older People Provider Services","ILS Stores","R4003"
"Wolverhampton City Council","http://opendatacommunities.org/id/metropolitan-district-council/wolverhampton","707722","Swift Maintnce Services (1973) Limited","29209","406.15","R&M - Departmental planned (external)","130243680","20/02/2019","Leisure Services","WV Active Catering","R2001"
"Wolverhampton City Council","http://opendatacommunities.org/id/metropolitan-district-council/wolverhampton","707722","Swift Maintnce Services (1973) Limited","29185","277.50","Equipment - R & M","130243275","08/02/2019","Catering","Education Catering - General Overheads","R4003"
"Wolverhampton City Council","http://opendatacommunities.org/id/metropolitan-district-council/wolverhampton","707722","Swift Maintnce Services (1973) Limited","29186","188.00","Equipment - R & M","130243276","08/02/2019","Catering","Education Catering - General Overheads","R4003"
"Wolverhampton City Council","http://opendatacommunities.org/id/metropolitan-district-council/wolverhampton","707722","Swift Maintnce Services (1973) Limited","29184","499.00","Equipment - R & M","130243274","08/02/2019","Catering","Education Catering - General Overheads","R4003"
"Wolverhampton City Council","http://opendatacommunities.org/id/metropolitan-district-council/wolverhampton","707722","Swift Maintnce Services (1973) Limited","29050","93.61","Equipment - R & M","130242490","20/02/2019","Leisure Services","Bert Williams Leisure Centre Caf�","R4003"
"Wolverhampton City Council","http://opendatacommunities.org/id/metropolitan-district-council/wolverhampton","707722","Swift Maintnce Services (1973) Limited","29183","6,314.60","Equipment - R & M","130243273","13/02/2019","Catering","Education Catering - General Overheads","R4003"
"Wolverhampton City Council","http://opendatacommunities.org/id/metropolitan-district-council/wolverhampton","707722","Swift Maintnce Services (1973) Limited","29062","3,395.84","Equipment - R & M","130242494","15/02/2019","Cleaning","Cleaning of Buildings - General","R4003"
"Wolverhampton City Council","http://opendatacommunities.org/id/metropolitan-district-council/wolverhampton","707722","Swift Maintnce Services (1973) Limited","27957","77.08","R&M - Departmental planned (internal)","130233014","15/02/2019","Maintenance Programme","Centralised R&M","R2000"
"Wolverhampton City Council","http://opendatacommunities.org/id/metropolitan-district-council/wolverhampton","707726","Swimrite Supplies Limited","400215","312.45","Materials for resale","130241286","13/02/2019","Leisure Services","Central Baths","R4008"
"Wolverhampton City Council","http://opendatacommunities.org/id/metropolitan-district-council/wolverhampton","707751","T H White Limited","E86213","72.50","Equipment - Purchase","190557592","06/02/2019","Fleet Services","Fleet Management","R4000"
"Wolverhampton City Council","http://opendatacommunities.org/id/metropolitan-district-council/wolverhampton","707751","T H White Limited","E86193","158.00","Equipment - Purchase","190557589","06/02/2019","Fleet Services","Fleet Management","R4000"
"Wolverhampton City Council","http://opendatacommunities.org/id/metropolitan-district-council/wolverhampton","707751","T H White Limited","E86171","86.65","Equipment - Purchase","190556538","01/02/2019","Fleet Services","Fleet Management","R4000"
"Wolverhampton City Council","http://opendatacommunities.org/id/metropolitan-district-council/wolverhampton","707751","T H White Limited","E86171","261.55","Equipment - Purchase","190556538","01/02/2019","Fleet Services","Fleet Management","R4000"
"Wolverhampton City Council","http://opendatacommunities.org/id/metropolitan-district-council/wolverhampton","707751","T H White Limited","E86453","140.30","Equipment - Purchase","190562057","15/02/2019","Fleet Services","Fleet Management","R4000"
"Wolverhampton City Council","http://opendatacommunities.org/id/metropolitan-district-council/wolverhampton","707751","T H White Limited","E86399","4.93","Equipment - Purchase","190563469","20/02/2019","Fleet Services","Fleet Management","R4000"
"Wolverhampton City Council","http://opendatacommunities.org/id/metropolitan-district-council/wolverhampton","707751","T H White Limited","E86399","129.39","Equipment - Purchase","190563469","20/02/2019","Fleet Services","Fleet Management","R4000"
"Wolverhampton City Council","http://opendatacommunities.org/id/metropolitan-district-council/wolverhampton","707751","T H White Limited","E86399","251.15","Equipment - Purchase","190563469","20/02/2019","Fleet Services","Fleet Management","R4000"
"Wolverhampton City Council","http://opendatacommunities.org/id/metropolitan-district-council/wolverhampton","707751","T H White Limited","E86399","119.78","Equipment - Purchase","190563469","20/02/2019","Fleet Services","Fleet Management","R4000"
"Wolverhampton City Council","http://opendatacommunities.org/id/metropolitan-district-council/wolverhampton","707751","T H White Limited","E86412","46.38","Equipment - Purchase","190563470","20/02/2019","Fleet Services","Fleet Management","R4000"
"Wolverhampton City Council","http://opendatacommunities.org/id/metropolitan-district-council/wolverhampton","707751","T H White Limited","E86412","89.06","Equipment - Purchase","190563470","20/02/2019","Fleet Services","Fleet Management","R4000"
"Wolverhampton City Council","http://opendatacommunities.org/id/metropolitan-district-council/wolverhampton","707751","T H White Limited","E86247","256.65","Equipment - Purchase","190557593","06/02/2019","Fleet Services","Fleet Management","R4000"
"Wolverhampton City Council","http://opendatacommunities.org/id/metropolitan-district-council/wolverhampton","707751","T H White Limited","E86247","23.70","Equipment - Purchase","190557593","06/02/2019","Fleet Services","Fleet Management","R4000"
"Wolverhampton City Council","http://opendatacommunities.org/id/metropolitan-district-council/wolverhampton","707751","T H White Limited","E86212","105.75","Equipment - Purchase","190557591","06/02/2019","Fleet Services","Fleet Management","R4000"
"Wolverhampton City Council","http://opendatacommunities.org/id/metropolitan-district-council/wolverhampton","707751","T H White Limited","E86212","29.95","Equipment - Purchase","190557591","06/02/2019","Fleet Services","Fleet Management","R4000"
"Wolverhampton City Council","http://opendatacommunities.org/id/metropolitan-district-council/wolverhampton","707751","T H White Limited","E86212","32.50","Equipment - Purchase","190557591","06/02/2019","Fleet Services","Fleet Management","R4000"
"Wolverhampton City Council","http://opendatacommunities.org/id/metropolitan-district-council/wolverhampton","707751","T H White Limited","E86203","14.21","Equipment - Purchase","190557590","06/02/2019","Fleet Services","Fleet Management","R4000"
"Wolverhampton City Council","http://opendatacommunities.org/id/metropolitan-district-council/wolverhampton","707751","T H White Limited","E86203","10.95","Equipment - Purchase","190557590","06/02/2019","Fleet Services","Fleet Management","R4000"
"Wolverhampton City Council","http://opendatacommunities.org/id/metropolitan-district-council/wolverhampton","707751","T H White Limited","E86203","43.72","Equipment - Purchase","190557590","06/02/2019","Fleet Services","Fleet Management","R4000"
"Wolverhampton City Council","http://opendatacommunities.org/id/metropolitan-district-council/wolverhampton","707751","T H White Limited","E86203","16.66","Equipment - Purchase","190557590","06/02/2019","Fleet Services","Fleet Management","R4000"
"Wolverhampton City Council","http://opendatacommunities.org/id/metropolitan-district-council/wolverhampton","707751","T H White Limited","E86203","17.50","Equipment - Purchase","190557590","06/02/2019","Fleet Services","Fleet Management","R4000"
"Wolverhampton City Council","http://opendatacommunities.org/id/metropolitan-district-council/wolverhampton","707751","T H White Limited","E86203","53.12","Equipment - Purchase","190557590","06/02/2019","Fleet Services","Fleet Management","R4000"
"Wolverhampton City Council","http://opendatacommunities.org/id/metropolitan-district-council/wolverhampton","707751","T H White Limited","E86417","1.19","Equipment - Purchase","190567416","27/02/2019","Fleet Services","Fleet Management","R4000"
"Wolverhampton City Council","http://opendatacommunities.org/id/metropolitan-district-council/wolverhampton","707751","T H White Limited","E86417","23.75","Equipment - Purchase","190567416","27/02/2019","Fleet Services","Fleet Management","R4000"
"Wolverhampton City Council","http://opendatacommunities.org/id/metropolitan-district-council/wolverhampton","707751","T H White Limited","E86417","0.93","Equipment - Purchase","190567416","27/02/2019","Fleet Services","Fleet Management","R4000"
"Wolverhampton City Council","http://opendatacommunities.org/id/metropolitan-district-council/wolverhampton","707751","T H White Limited","E86417","4.43","Equipment - Purchase","190567416","27/02/2019","Fleet Services","Fleet Management","R4000"
"Wolverhampton City Council","http://opendatacommunities.org/id/metropolitan-district-council/wolverhampton","707751","T H White Limited","E86417","5.35","Equipment - Purchase","190567416","27/02/2019","Fleet Services","Fleet Management","R4000"
"Wolverhampton City Council","http://opendatacommunities.org/id/metropolitan-district-council/wolverhampton","707751","T H White Limited","E86450","7.24","Equipment - Purchase","190567417","27/02/2019","Fleet Services","Fleet Management","R4000"
"Wolverhampton City Council","http://opendatacommunities.org/id/metropolitan-district-council/wolverhampton","707751","T H White Limited","E86450","196.21","Equipment - Purchase","190567417","27/02/2019","Fleet Services","Fleet Management","R4000"
"Wolverhampton City Council","http://opendatacommunities.org/id/metropolitan-district-council/wolverhampton","707751","T H White Limited","E86450","2.91","Equipment - Purchase","190567417","27/02/2019","Fleet Services","Fleet Management","R4000"
"Wolverhampton City Council","http://opendatacommunities.org/id/metropolitan-district-council/wolverhampton","707751","T H White Limited","E86450","5.53","Equipment - Purchase","190567417","27/02/2019","Fleet Services","Fleet Management","R4000"
"Wolverhampton City Council","http://opendatacommunities.org/id/metropolitan-district-council/wolverhampton","707751","T H White Limited","E86450","10.07","Equipment - Purchase","190567417","27/02/2019","Fleet Services","Fleet Management","R4000"
"Wolverhampton City Council","http://opendatacommunities.org/id/metropolitan-district-council/wolverhampton","707751","T H White Limited","E86452","109.44","Equipment - Purchase","190567418","27/02/2019","Fleet Services","Fleet Management","R4000"
"Wolverhampton City Council","http://opendatacommunities.org/id/metropolitan-district-council/wolverhampton","707751","T H White Limited","E86452","6.64","Equipment - Purchase","190567418","27/02/2019","Fleet Services","Fleet Management","R4000"
"Wolverhampton City Council","http://opendatacommunities.org/id/metropolitan-district-council/wolverhampton","707751","T H White Limited","E86452","332.04","Equipment - Purchase","190567418","27/02/2019","Fleet Services","Fleet Management","R4000"
"Wolverhampton City Council","http://opendatacommunities.org/id/metropolitan-district-council/wolverhampton","707751","T H White Limited","E86417","152.82","Equipment - Purchase","190567416","27/02/2019","Fleet Services","Fleet Management","R4000"
"Wolverhampton City Council","http://opendatacommunities.org/id/metropolitan-district-council/wolverhampton","707751","T H White Limited","E86417","248.03","Equipment - Purchase","190567416","27/02/2019","Fleet Services","Fleet Management","R4000"
"Wolverhampton City Council","http://opendatacommunities.org/id/metropolitan-district-council/wolverhampton","707751","T H White Limited","E86417","1.81","Equipment - Purchase","190567416","27/02/2019","Fleet Services","Fleet Management","R4000"
"Wolverhampton City Council","http://opendatacommunities.org/id/metropolitan-district-council/wolverhampton","707751","T H White Limited","E86417","126.27","Equipment - Purchase","190567416","27/02/2019","Fleet Services","Fleet Management","R4000"
"Wolverhampton City Council","http://opendatacommunities.org/id/metropolitan-district-council/wolverhampton","707751","T H White Limited","E86417","13.41","Equipment - Purchase","190567416","27/02/2019","Fleet Services","Fleet Management","R4000"
"Wolverhampton City Council","http://opendatacommunities.org/id/metropolitan-district-council/wolverhampton","707775","Tameside M.B.C.","61638518","36.10","Subscriptions","130242809","06/02/2019","Audit Services","Audit Services","R4701"
"Wolverhampton City Council","http://opendatacommunities.org/id/metropolitan-district-council/wolverhampton","707775","Tameside M.B.C.","61638518","1.58","Subscriptions","130242809","06/02/2019","Audit Services","Audit Services","R4701"
"Wolverhampton City Council","http://opendatacommunities.org/id/metropolitan-district-council/wolverhampton","707798","The Children�s Society","ARSERV/00000699","11,431.63","TPP - Social Care Support Services","130241394","15/02/2019","Children & Young People In Care","Head of Service - LAC","R5501"
"Wolverhampton City Council","http://opendatacommunities.org/id/metropolitan-district-council/wolverhampton","707824","Technogym UK Limited","1872003192","247.14","R&M - Departmental planned (external)","130242625","08/02/2019","Leisure Services","Bert Williams Leisure Centre","R2001"
"Wolverhampton City Council","http://opendatacommunities.org/id/metropolitan-district-council/wolverhampton","707824","Technogym UK Limited","1872003277","602.23","Equipment - R & M","130242627","06/02/2019","Leisure Services","Bert Williams Leisure Centre","R4003"
"Wolverhampton City Council","http://opendatacommunities.org/id/metropolitan-district-council/wolverhampton","707824","Technogym UK Limited","1872003276","602.23","Equipment - R & M","130242626","06/02/2019","Leisure Services","Bert Williams Leisure Centre","R4003"
"Wolverhampton City Council","http://opendatacommunities.org/id/metropolitan-district-council/wolverhampton","707824","Technogym UK Limited","1872003278","94.40","Equipment - R & M","130242628","06/02/2019","Leisure Services","Bert Williams Leisure Centre","R4003"
"Wolverhampton City Council","http://opendatacommunities.org/id/metropolitan-district-council/wolverhampton","707824","Technogym UK Limited","1872002703","338.67","Equipment - R & M","130242624","13/02/2019","Leisure Services","Aldersley Leisure Village","R4003"
"Wolverhampton City Council","http://opendatacommunities.org/id/metropolitan-district-council/wolverhampton","707824","Technogym UK Limited","1972000263","164.38","Equipment - R & M","130242629","27/02/2019","Leisure Services","Bert Williams Leisure Centre","R4003"
"Wolverhampton City Council","http://opendatacommunities.org/id/metropolitan-district-council/wolverhampton","707824","Technogym UK Limited","1972000009","3,153.15","Equipment - R & M","130244856","27/02/2019","Leisure Services","Bert Williams Leisure Centre","R4003"
"Wolverhampton City Council","http://opendatacommunities.org/id/metropolitan-district-council/wolverhampton","707841","Telford & Wrekin Council","4418681","1,950.00","Client Transport - SEN","130243682","13/02/2019","Special Educational Needs","Special - Transport","R3043"
"Wolverhampton City Council","http://opendatacommunities.org/id/metropolitan-district-council/wolverhampton","707841","Telford & Wrekin Council","4421408","2,560.00","Services - Professional Fees","130242495","27/02/2019","Planning","Planning","R4400"
"Wolverhampton City Council","http://opendatacommunities.org/id/metropolitan-district-council/wolverhampton","707855","Terberg Matec UK Limited","96366547","383.66","Equipment - Purchase","190562055","15/02/2019","Fleet Services","Fleet Management","R4000"
"Wolverhampton City Council","http://opendatacommunities.org/id/metropolitan-district-council/wolverhampton","707855","Terberg Matec UK Limited","96368938","132.31","Equipment - Purchase","190567399","27/02/2019","Fleet Services","Fleet Management","R4000"
"Wolverhampton City Council","http://opendatacommunities.org/id/metropolitan-district-council/wolverhampton","707855","Terberg Matec UK Limited","96367805","490.00","Equipment - Purchase","190558942","06/02/2019","Fleet Services","Fleet Management","R4000"
"Wolverhampton City Council","http://opendatacommunities.org/id/metropolitan-district-council/wolverhampton","707855","Terberg Matec UK Limited","96367805","490.00","Equipment - Purchase","190558942","06/02/2019","Fleet Services","Fleet Management","R4000"
"Wolverhampton City Council","http://opendatacommunities.org/id/metropolitan-district-council/wolverhampton","707855","Terberg Matec UK Limited","96367805","490.00","Equipment - Purchase","190558942","06/02/2019","Fleet Services","Fleet Management","R4000"
"Wolverhampton City Council","http://opendatacommunities.org/id/metropolitan-district-council/wolverhampton","707855","Terberg Matec UK Limited","96367805","490.00","Equipment - Purchase","190558942","06/02/2019","Fleet Services","Fleet Management","R4000"
"Wolverhampton City Council","http://opendatacommunities.org/id/metropolitan-district-council/wolverhampton","707855","Terberg Matec UK Limited","96367805","490.00","Equipment - Purchase","190558942","06/02/2019","Fleet Services","Fleet Management","R4000"
"Wolverhampton City Council","http://opendatacommunities.org/id/metropolitan-district-council/wolverhampton","707855","Terberg Matec UK Limited","96367805","490.00","Equipment - Purchase","190558942","06/02/2019","Fleet Services","Fleet Management","R4000"
"Wolverhampton City Council","http://opendatacommunities.org/id/metropolitan-district-council/wolverhampton","707855","Terberg Matec UK Limited","96367805","490.00","Equipment - Purchase","190558942","06/02/2019","Fleet Services","Fleet Management","R4000"
"Wolverhampton City Council","http://opendatacommunities.org/id/metropolitan-district-council/wolverhampton","707855","Terberg Matec UK Limited","96367805","490.00","Equipment - Purchase","190558942","06/02/2019","Fleet Services","Fleet Management","R4000"
"Wolverhampton City Council","http://opendatacommunities.org/id/metropolitan-district-council/wolverhampton","707855","Terberg Matec UK Limited","96367805","490.00","Equipment - Purchase","190558942","06/02/2019","Fleet Services","Fleet Management","R4000"
"Wolverhampton City Council","http://opendatacommunities.org/id/metropolitan-district-council/wolverhampton","707855","Terberg Matec UK Limited","96367805","490.00","Equipment - Purchase","190558942","06/02/2019","Fleet Services","Fleet Management","R4000"
"Wolverhampton City Council","http://opendatacommunities.org/id/metropolitan-district-council/wolverhampton","707855","Terberg Matec UK Limited","96367805","490.00","Equipment - Purchase","190558942","06/02/2019","Fleet Services","Fleet Management","R4000"
"Wolverhampton City Council","http://opendatacommunities.org/id/metropolitan-district-council/wolverhampton","707855","Terberg Matec UK Limited","96367805","490.00","Equipment - Purchase","190558942","06/02/2019","Fleet Services","Fleet Management","R4000"
"Wolverhampton City Council","http://opendatacommunities.org/id/metropolitan-district-council/wolverhampton","707855","Terberg Matec UK Limited","96367805","490.00","Equipment - Purchase","190558942","06/02/2019","Fleet Services","Fleet Management","R4000"
"Wolverhampton City Council","http://opendatacommunities.org/id/metropolitan-district-council/wolverhampton","707855","Terberg Matec UK Limited","96367805","490.00","Equipment - Purchase","190558942","06/02/2019","Fleet Services","Fleet Management","R4000"
"Wolverhampton City Council","http://opendatacommunities.org/id/metropolitan-district-council/wolverhampton","707855","Terberg Matec UK Limited","96367805","490.00","Equipment - Purchase","190558942","06/02/2019","Fleet Services","Fleet Management","R4000"
"Wolverhampton City Council","http://opendatacommunities.org/id/metropolitan-district-council/wolverhampton","707855","Terberg Matec UK Limited","96367805","490.00","Equipment - Purchase","190558942","06/02/2019","Fleet Services","Fleet Management","R4000"
"Wolverhampton City Council","http://opendatacommunities.org/id/metropolitan-district-council/wolverhampton","707855","Terberg Matec UK Limited","96367805","490.00","Equipment - Purchase","190558942","06/02/2019","Fleet Services","Fleet Management","R4000"
"Wolverhampton City Council","http://opendatacommunities.org/id/metropolitan-district-council/wolverhampton","707855","Terberg Matec UK Limited","96367805","490.00","Equipment - Purchase","190558942","06/02/2019","Fleet Services","Fleet Management","R4000"
"Wolverhampton City Council","http://opendatacommunities.org/id/metropolitan-district-council/wolverhampton","707855","Terberg Matec UK Limited","96367805","490.00","Equipment - Purchase","190558942","06/02/2019","Fleet Services","Fleet Management","R4000"
"Wolverhampton City Council","http://opendatacommunities.org/id/metropolitan-district-council/wolverhampton","707859","Tettenhall Pcc","PCR1218","1,668.49","Rent","130243055","15/02/2019","Local Economy","Tettenhall Library","R2200"
"Wolverhampton City Council","http://opendatacommunities.org/id/metropolitan-district-council/wolverhampton","707891","The Bigword Interpreting Serv. Limited","INV20198333RE-ISSUE","120.00","Services - Translation fees","130241397","20/02/2019","Strengthening Families","MASH","R4406"
"Wolverhampton City Council","http://opendatacommunities.org/id/metropolitan-district-council/wolverhampton","707891","The Bigword Interpreting Serv. Limited","INV579064","67.94","Services - Professional Fees","130241400","08/02/2019","Inclusion Support","Inclusion Support","R4400"
"Wolverhampton City Council","http://opendatacommunities.org/id/metropolitan-district-council/wolverhampton","707891","The Bigword Interpreting Serv. Limited","INV20178531","48.00","Services - Translation fees","130175950","22/02/2019","Strengthening Families","CP Area 7 - Low Hill","R4406"
"Wolverhampton City Council","http://opendatacommunities.org/id/metropolitan-district-council/wolverhampton","707891","The Bigword Interpreting Serv. Limited","INV20190625","32.00","Services - Translation fees","130193900","01/02/2019","Strengthening Families","CP Area 6 - Dovecotes","R4406"
"Wolverhampton City Council","http://opendatacommunities.org/id/metropolitan-district-council/wolverhampton","707891","The Bigword Interpreting Serv. Limited","INV20178530","64.00","Services - Translation fees","130175949","22/02/2019","Strengthening Families","CP Area 6 - Dovecotes","R4406"
"Wolverhampton City Council","http://opendatacommunities.org/id/metropolitan-district-council/wolverhampton","707891","The Bigword Interpreting Serv. Limited","INV20155109","32.00","Services - Professional Fees","130170008","22/02/2019","Specialist Support","Intensive Family Support & Family Group Conferencing Team","R4400"
"Wolverhampton City Council","http://opendatacommunities.org/id/metropolitan-district-council/wolverhampton","707891","The Bigword Interpreting Serv. Limited","INV20184937","96.00","Services - Translation fees","130185897","22/02/2019","Children & Young People In Care","Childrens with Disabilities Team","R4406"
"Wolverhampton City Council","http://opendatacommunities.org/id/metropolitan-district-council/wolverhampton","707891","The Bigword Interpreting Serv. Limited","INV20185058","64.00","Services - Translation fees","130186227","22/02/2019","Children & Young People In Care","Childrens with Disabilities Team","R4406"
"Wolverhampton City Council","http://opendatacommunities.org/id/metropolitan-district-council/wolverhampton","707891","The Bigword Interpreting Serv. Limited","INV20194898","90.00","Services - Translation fees","130200062","22/02/2019","Strengthening Families","MASH","R4406"
"Wolverhampton City Council","http://opendatacommunities.org/id/metropolitan-district-council/wolverhampton","707891","The Bigword Interpreting Serv. Limited","INV20193321RE-ISSUE","32.00","Services - Translation fees","130241396","22/02/2019","Strengthening Families","EI Area 7 - Low Hill","R4406"
"Wolverhampton City Council","http://opendatacommunities.org/id/metropolitan-district-council/wolverhampton","707891","The Bigword Interpreting Serv. Limited","INV20169673","96.00","Services - Translation fees","130228760","06/02/2019","Safeguarding","Safeguarding Board - Childrens","R4406"
"Wolverhampton City Council","http://opendatacommunities.org/id/metropolitan-district-council/wolverhampton","707928","The Columbaria Company T/A Odlings","INV0064627","82.00","Materials","130241287","13/02/2019","Bereavement Services","Cemeteries","R4007"
"Wolverhampton City Council","http://opendatacommunities.org/id/metropolitan-district-council/wolverhampton","707946","The Disabled Adaptations Service","17/0702/DFG","456.00","Grants paid out to other organisations","190559685","08/02/2019","-","Disabled Facilities Grants","C5011"
"Wolverhampton City Council","http://opendatacommunities.org/id/metropolitan-district-council/wolverhampton","707946","The Disabled Adaptations Service","17/0017/DFG","650.74","Grants paid out to other organisations","190563601","20/02/2019","-","Disabled Facilities Grants","C5011"
"Wolverhampton City Council","http://opendatacommunities.org/id/metropolitan-district-council/wolverhampton","707946","The Disabled Adaptations Service","16/0082/DFG","407.00","Grants paid out to other organisations","190558616","06/02/2019","-","Disabled Facilities Grants","C5011"
"Wolverhampton City Council","http://opendatacommunities.org/id/metropolitan-district-council/wolverhampton","707976","The Grange Residential Home","P198414 03031920190211","2,080.00","TPP - Residential Care - Long Term","190561604","14/02/2019","Older People Care Purchasing","OP Care Purchasing (Spot Placements)","R5400"
"Wolverhampton City Council","http://opendatacommunities.org/id/metropolitan-district-council/wolverhampton","707986","The Helping Hand Company","334999","695.00","Equipment - Purchase","130240550","06/02/2019","Older People Provider Services","ILS Stores","R4000"
"Wolverhampton City Council","http://opendatacommunities.org/id/metropolitan-district-council/wolverhampton","707986","The Helping Hand Company","334999","45.00","Equipment - Purchase","130240550","06/02/2019","Older People Provider Services","ILS Stores","R4000"
"Wolverhampton City Council","http://opendatacommunities.org/id/metropolitan-district-council/wolverhampton","707986","The Helping Hand Company","334999","15.00","Comms - Postage","130240550","06/02/2019","Older People Provider Services","ILS Stores","R4503"
"Wolverhampton City Council","http://opendatacommunities.org/id/metropolitan-district-council/wolverhampton","707986","The Helping Hand Company","334912","1,047.20","Equipment - Purchase","130240292","06/02/2019","Older People Provider Services","ILS Stores","R4000"
"Wolverhampton City Council","http://opendatacommunities.org/id/metropolitan-district-council/wolverhampton","707986","The Helping Hand Company","334912","10.00","Comms - Postage","130240292","06/02/2019","Older People Provider Services","ILS Stores","R4503"
"Wolverhampton City Council","http://opendatacommunities.org/id/metropolitan-district-council/wolverhampton","707986","The Helping Hand Company","334672","259.25","Equipment - Purchase","130239772","01/02/2019","Older People Provider Services","ILS Stores","R4000"
"Wolverhampton City Council","http://opendatacommunities.org/id/metropolitan-district-council/wolverhampton","707986","The Helping Hand Company","336030","2,764.00","Equipment - Purchase","130242036","20/02/2019","Older People Provider Services","ILS Stores","R4000"
"Wolverhampton City Council","http://opendatacommunities.org/id/metropolitan-district-council/wolverhampton","707986","The Helping Hand Company","336030","89.00","Comms - Postage","130242036","20/02/2019","Older People Provider Services","ILS Stores","R4503"
"Wolverhampton City Council","http://opendatacommunities.org/id/metropolitan-district-council/wolverhampton","707986","The Helping Hand Company","334596","159.00","Equipment - R & M","130239594","06/02/2019","Older People Provider Services","ILS Stores","R4003"
"Wolverhampton City Council","http://opendatacommunities.org/id/metropolitan-district-council/wolverhampton","707986","The Helping Hand Company","336174","211.60","Equipment - Purchase","130242037","20/02/2019","Older People Provider Services","ILS Stores","R4000"
"Wolverhampton City Council","http://opendatacommunities.org/id/metropolitan-district-council/wolverhampton","707986","The Helping Hand Company","335626","1,995.00","Equipment - Purchase","130241166","13/02/2019","Older People Provider Services","ILS Stores","R4000"
"Wolverhampton City Council","http://opendatacommunities.org/id/metropolitan-district-council/wolverhampton","707986","The Helping Hand Company","335626","129.00","Comms - Postage","130241166","13/02/2019","Older People Provider Services","ILS Stores","R4503"
"Wolverhampton City Council","http://opendatacommunities.org/id/metropolitan-district-council/wolverhampton","707986","The Helping Hand Company","335352","41.40","Equipment - R & M","130241013","13/02/2019","Older People Provider Services","ILS Stores","R4003"
"Wolverhampton City Council","http://opendatacommunities.org/id/metropolitan-district-council/wolverhampton","707986","The Helping Hand Company","335352","37.80","Equipment - R & M","130241013","13/02/2019","Older People Provider Services","ILS Stores","R4003"
"Wolverhampton City Council","http://opendatacommunities.org/id/metropolitan-district-council/wolverhampton","707986","The Helping Hand Company","335352","19.80","Equipment - R & M","130241013","13/02/2019","Older People Provider Services","ILS Stores","R4003"
"Wolverhampton City Council","http://opendatacommunities.org/id/metropolitan-district-council/wolverhampton","707986","The Helping Hand Company","335352","5.00","Comms - Postage","130241013","13/02/2019","Older People Provider Services","ILS Stores","R4503"
"Wolverhampton City Council","http://opendatacommunities.org/id/metropolitan-district-council/wolverhampton","707986","The Helping Hand Company","335465","886.00","Equipment - Purchase","130241165","13/02/2019","Environmental Maintenance","Ground Maintenance East","R4000"
"Wolverhampton City Council","http://opendatacommunities.org/id/metropolitan-district-council/wolverhampton","707986","The Helping Hand Company","335465","1,984.00","Equipment - Purchase","130241165","13/02/2019","Environmental Maintenance","Ground Maintenance East","R4000"
"Wolverhampton City Council","http://opendatacommunities.org/id/metropolitan-district-council/wolverhampton","708082","The Queen Victoria Hotel","01652","1,155.00","No Recourse to Public Funds","130245079","27/02/2019","Strengthening Families","CP Area 3 - Graiseley","R6314"
"Wolverhampton City Council","http://opendatacommunities.org/id/metropolitan-district-council/wolverhampton","708101","The Royal Wolverhampton School","P19833920190208","143.70","TPP - Placement Foster Care Inhouse","190560492","13/02/2019","Children & Young People In Care","LAC Transitions Team","R5601"
"Wolverhampton City Council","http://opendatacommunities.org/id/metropolitan-district-council/wolverhampton","708101","The Royal Wolverhampton School","P19906120190215","143.70","TPP - Placement Foster Care Inhouse","190562746","20/02/2019","Children & Young People In Care","LAC Transitions Accommodation","R5601"
"Wolverhampton City Council","http://opendatacommunities.org/id/metropolitan-district-council/wolverhampton","708101","The Royal Wolverhampton School","P19758120190201","143.70","TPP - Placement Foster Care Inhouse","190557609","06/02/2019","Children & Young People In Care","LAC Transitions Team","R5601"
"Wolverhampton City Council","http://opendatacommunities.org/id/metropolitan-district-council/wolverhampton","708101","The Royal Wolverhampton School","P198143 03031920190211","3,970.75","TPP - Residential Care - Long Term","190560704","13/02/2019","Children & Young People In Care","Out of City Placements","R5400"
"Wolverhampton City Council","http://opendatacommunities.org/id/metropolitan-district-council/wolverhampton","708101","The Royal Wolverhampton School","P19939620190222","143.70","TPP - Placement Foster Care Inhouse","190565875","27/02/2019","Children & Young People In Care","LAC Transitions Accommodation","R5601"
"Wolverhampton City Council","http://opendatacommunities.org/id/metropolitan-district-council/wolverhampton","708130","The Switch Project Limited","CN001-19","-30,000.00","TPP - Alternative Provision of Education","130242630","20/02/2019","Inclusion Support","Alternative Provision","R5037"
"Wolverhampton City Council","http://opendatacommunities.org/id/metropolitan-district-council/wolverhampton","708130","The Switch Project Limited","TSP006-19","7,040.00","TPP - Alternative Provision of Education","130242496","20/02/2019","Inclusion Support","Alternative Provision","R5037"
"Wolverhampton City Council","http://opendatacommunities.org/id/metropolitan-district-council/wolverhampton","708130","The Switch Project Limited","TSP007-19","30,000.00","TPP - Alternative Provision of Education","130241749","20/02/2019","Inclusion Support","Alternative Provision","R5037"
"Wolverhampton City Council","http://opendatacommunities.org/id/metropolitan-district-council/wolverhampton","708169","Thomas Fattorini Limited","I232499","179.91","Services - Professional Fees","130243279","20/02/2019","Public Service Reform","Mayoral Expenses","R4400"
"Wolverhampton City Council","http://opendatacommunities.org/id/metropolitan-district-council/wolverhampton","708176","Thompson Avc Limited","36280RE-ISSUE","65.00","R&M - Departmental planned (external)","130242359","20/02/2019","Facilities Management","Hickman Avenue Depot","R2001"
"Wolverhampton City Council","http://opendatacommunities.org/id/metropolitan-district-council/wolverhampton","708176","Thompson Avc Limited","37413","1,232.00","Plant, Equipment, Machinery & Computer Hardware","130243903","20/02/2019","-","Corporate Asset Management","C3000"
"Wolverhampton City Council","http://opendatacommunities.org/id/metropolitan-district-council/wolverhampton","708176","Thompson Avc Limited","37374","367.00","Equipment - Purchase","130242040","13/02/2019","Visitor Economy","Bantock House Museum","R4000"
"Wolverhampton City Council","http://opendatacommunities.org/id/metropolitan-district-council/wolverhampton","708176","Thompson Avc Limited","37471","11,000.00","Equipment - Purchase","130244322","15/02/2019","ICTS","Strategic ICTS (ICT Service Budget)","R4000"
"Wolverhampton City Council","http://opendatacommunities.org/id/metropolitan-district-council/wolverhampton","708176","Thompson Avc Limited","37414","5,941.60","R&M - Departmental planned (external)","130243904","27/02/2019","Facilities Management","Hickman Avenue Depot","R2001"
"Wolverhampton City Council","http://opendatacommunities.org/id/metropolitan-district-council/wolverhampton","708176","Thompson Avc Limited","37412","1,734.60","Equipment - Purchase","130243902","27/02/2019","Facilities Management","i10 Facilities Management","R4000"
"Wolverhampton City Council","http://opendatacommunities.org/id/metropolitan-district-council/wolverhampton","708176","Thompson Avc Limited","37361","81.32","R&M - Departmental planned (external)","130242039","01/02/2019","Facilities Management","Hickman Avenue Depot","R2001"
"Wolverhampton City Council","http://opendatacommunities.org/id/metropolitan-district-council/wolverhampton","708181","Thornley St Surgery","M2018Q315SHCHLAQ","216.00","TPP - Public Health Contracts","190557229","01/02/2019","Starting and Developing Well","Sexual Health","R5060"
"Wolverhampton City Council","http://opendatacommunities.org/id/metropolitan-district-council/wolverhampton","708181","Thornley St Surgery","M2018Q3.15SHIUDRQ","25.00","TPP - Public Health Contracts","190557227","01/02/2019","Starting and Developing Well","Sexual Health","R5060"
"Wolverhampton City Council","http://opendatacommunities.org/id/metropolitan-district-council/wolverhampton","708181","Thornley St Surgery","M2018Q315SHCIFIQ","500.00","TPP - Public Health Contracts","190557222","01/02/2019","Starting and Developing Well","Sexual Health","R5060"
"Wolverhampton City Council","http://opendatacommunities.org/id/metropolitan-district-council/wolverhampton","708181","Thornley St Surgery","M2018Q315SHCIFRQ","495.00","TPP - Public Health Contracts","190557223","01/02/2019","Starting and Developing Well","Sexual Health","R5060"
"Wolverhampton City Council","http://opendatacommunities.org/id/metropolitan-district-council/wolverhampton","708181","Thornley St Surgery","M2019Q315HL1IHCQ","0.50","TPP - Public Health Contracts","190567483","27/02/2019","Healthy Life Expectancy","Healthy Lifestyles","R5060"
"Wolverhampton City Council","http://opendatacommunities.org/id/metropolitan-district-council/wolverhampton","708181","Thornley St Surgery","M2018Q315SHCIFBQ","400.00","TPP - Public Health Contracts","190557224","01/02/2019","Starting and Developing Well","Sexual Health","R5060"
"Wolverhampton City Council","http://opendatacommunities.org/id/metropolitan-district-council/wolverhampton","708181","Thornley St Surgery","M2018Q315SHIUDFQ","400.00","TPP - Public Health Contracts","190557225","01/02/2019","Starting and Developing Well","Sexual Health","R5060"
"Wolverhampton City Council","http://opendatacommunities.org/id/metropolitan-district-council/wolverhampton","708181","Thornley St Surgery","M2018Q3.15SHIURFQ","200.00","TPP - Public Health Contracts","190557228","01/02/2019","Starting and Developing Well","Sexual Health","R5060"
"Wolverhampton City Council","http://opendatacommunities.org/id/metropolitan-district-council/wolverhampton","708181","Thornley St Surgery","M2018Q315SHIUFRQ","100.00","TPP - Public Health Contracts","190557226","01/02/2019","Starting and Developing Well","Sexual Health","R5060"
"Wolverhampton City Council","http://opendatacommunities.org/id/metropolitan-district-council/wolverhampton","708185","Three Pines Building Co Limited","17/0004/DFG","4,461.19","Grants paid out to other organisations","190567435","27/02/2019","-","Disabled Facilities Grants","C5011"
"Wolverhampton City Council","http://opendatacommunities.org/id/metropolitan-district-council/wolverhampton","708198","Time Right Limited","SIN110793","20.63","Services - Fees and Charges","130243280","27/02/2019","Environmental Maintenance","Ground Maintenance East","R4401"
"Wolverhampton City Council","http://opendatacommunities.org/id/metropolitan-district-council/wolverhampton","708198","Time Right Limited","SIN110793","9.38","Services - Fees and Charges","130243280","27/02/2019","Environmental Maintenance","Ground Maintenance East","R4401"
"Wolverhampton City Council","http://opendatacommunities.org/id/metropolitan-district-council/wolverhampton","708216","Tlc College","0234","1,500.00","Services - Professional Fees","130242631","01/02/2019","Headstart","Headstart - Learning Technologies Team","R4400"
